{"text_format":"2","workbook":"xlsx","n_sheets":13,"sheets":["RESUMO GERAL","Encarregado de Limpeza","Servente","Copeira","GARÇOM","Jardineiro","Auxiliar de Jardinagem","RECEPCIONISTA","UNIFORMES","MATERIAIS e EQUIPAMENTOS","EQUIPAMENTOS","Memória de Calculos Encargo","Encargos sociais"],"not_rendered":{"charts":0,"images":0,"macros":0,"external_links":0,"defined_names":61,"comments":0,"pivot_tables":0},"unopened":[],"bounds":{"document_bytes":16777216,"sheet_cells":100000,"run_cost":"one","rows_first":2000,"rows_last":500,"rows_between":2000,"halvings":0,"cell_chars":16384,"cell_head_chars":4096},"cells_cut":0,"cells_raw":0,"read":"whole","date_system":"1900"}

{"sheet":"RESUMO GERAL","index":0,"n_rows":12,"n_cols":6,"rows_kept":12,"cut":false,"hidden":false,"merged":[[0,0,0,5],[11,0,11,4],[10,0,10,3],[1,0,1,5]]}
["PLANILHA -  RESUMO TOTAL"]
["LICITAÇÃO CODEVASF"]
["Item","Posto","VALOR UNITÁRIO POR EMPREGADO (A)","QUANTIDADE DE EMPREGADOS (B)","Valor Mensal do serviço                           ( C )= ( A x B )","Valor Anual dos serviços                           ( d )= ( C x 12)"]
[1,"ENCARREGADO DE LIMPEZA",{"$f":"'Encarregado de Limpeza'!D131","v":0},1,{"$f":"C4*D4","v":0},{"$f":"E4*12","v":0}]
[2,"SERVENTE",{"$f":"Servente!D131","v":0},20,{"$f":"C5*D5","v":0},{"$f":"E5*12","v":0}]
[3,"COPEIRA",{"$f":"Copeira!D131","v":0},4,0,0]
[4,"GARÇOM",{"$f":"GARÇOM!D131","v":0},2,{"$f":"C7*D7","v":0},{"$f":"E7*12","v":0}]
[5,"JARDINEIRO",{"$f":"Jardineiro!D131","v":0},1,0,0]
[6,"AUXILIAR DE JARDINAGEM",{"$f":"'Auxiliar de Jardinagem'!D131","v":0},1,0,0]
[7,"RECEPCIONISTA",{"$f":"RECEPCIONISTA!D131","v":0},1,0,0]
["VALOR TOTAL     DOS   SERVIÇOS",null,null,null,{"$f":"SUM(E4:E10)","v":0},{"$f":"SUM(F4:F10)","v":0}]
["VALOR TOTAL DO ITEM",{"$nulls":4},{"$f":"F11","v":0}]

{"sheet":"Encarregado de Limpeza","index":1,"n_rows":131,"n_cols":5,"rows_kept":131,"cut":false,"hidden":false,"merged":[[129,0,129,2],[130,0,130,2],[123,1,123,2],[124,1,124,2],[125,1,125,2],[126,1,126,2],[127,0,127,2],[128,1,128,2],[122,1,122,2],[102,0,102,3],[108,0,108,2],[110,0,110,3],[118,0,118,2],[120,0,120,3],[121,0,121,2],[101,0,101,3],[77,0,77,1],[87,0,87,1],[91,0,91,3],[92,1,92,2],[93,1,93,2],[94,0,94,2],[96,0,96,3],[97,1,97,2],[98,1,98,2],[99,1,99,2],[100,0,100,2],[69,0,69,3],[54,0,55,0],[54,1,54,2],[55,1,55,2],[56,1,56,2],[57,1,57,2],[58,1,58,2],[59,1,59,2],[60,0,60,2],[62,0,62,3],[66,1,66,2],[67,0,67,1],[52,0,52,3],[13,1,13,2],[14,1,14,2],[15,1,15,2],[16,1,16,2],[17,1,17,2],[19,0,19,3],[28,1,28,2],[30,2,30,3],[31,0,31,3],[40,0,40,3],[50,0,50,1],[12,0,12,3],[0,0,0,3],[2,0,2,3],[3,1,3,2],[4,1,4,2],[5,1,5,2],[6,1,6,2],[7,0,7,3],[10,0,10,3]]}
["PLANILHA DE CUSTOS E FORMAÇÃO DE PREÇOS"]
["CODEVASF  -  REPACTUAÇÃO 2022 + REAJUSTE DOS INSUMOS"]
["PLANILHA DE CUSTOS E FORMAÇÃO DE PREÇOS   - CODEVASF"]
["A","Data ",null,"2024-04-23"]
["B","Município/UF",null,"Brasília/DF"]
["C","Ano de acordo coletivo, convenção coletiva ou sentença normativa em dissídio coletico",null,2024]
["D","Número de meses de execução contratral",null,12]
[]
[1,"Tipo e serviço (mesmo serviço com características distintas)","Unid. Medida","Quantidade de Funcionários"]
["1.1","ENCARREGADO DE LIMPEZA","Posto",1]
[]
["Dados complementares para composição dos custos referente á mão-de-obra"]
[]
[1,"Tipo de serviços (mesmo serviço com características distintas)",null,"ENCARREGADO DE LIMPEZA"]
[2,"Classificação Brasileira de Ocupações ( CBO ) ",null,4110]
[3,"Salário normativo da categoria profissional"]
[4,"Categoria profissional (vinculada à execução contratual)",null,"ENCARREGADO DE LIMPEZA"]
[5,"Data base da categoria (dia/mês/ano) - SINDISERVIÇOS DF000012/2024"]
[]
["Módulo 1: Composição da Remuneração"]
["MÓDULO1 ","Composição da Remuneração","%","R$"]
["A","Salário Base ",null,{"$f":"D16+(C22*D16)","v":0}]
["B","Adicional de periculosidade",null,{"$f":"D22*C23","v":0}]
["C","Adicional de Insalubridade ",null,{"$f":"D22*C24","v":0}]
["D","Adicional noturno",null,0]
["E","Adicional de hora noturna reduzida",null,0]
["F","Intervalo Intrajornada",null,{"$f":"(D22+D23)*C27","v":0}]
["H","Outros (Especificar)",null,0]
["I","Total de Remuneração",null,{"$f":"SUM(D22:D28)","v":0}]
[]
["MÓDULO 2","ENCARGOS SOCIAIS E TRABALHISTAS"]
["Submódulo 2.1  - 13º (Décimo Terceiro) Salário, Férias e Adicional de Férias"]
["Submódulo 2.1","13º Salário, Férias e Adicional de Férias","%","R$"]
["A","13º (Décimo Terceiro) Salário",null,{"$f":"C34*D22","v":0}]
["B"," Adicional de férias",null,{"$f":"C35*D29","v":0}]
[null,"TOTAL",{"$f":"SUM(C34:C35)","v":0},{"$f":"SUM(D34:D35)","v":0}]
["c","INCIDÊNCIA -SUBMODULO 2.2 SOBRE O SUBMODULO 2.1 - conforme IN 05/2017",{"$f":"C36*C51","v":0},{"$f":"C37*D29","v":0}]
[null,"Total do Submodulo 2",{"$f":"C36+C37","v":0},{"$f":"D36+D37","v":0}]
[]
["Submódulo 2.2","Encargos Previdenciários(GPS), Fundo de Garantia por tempo de Serviço(FGTS) e outras contribuições"]
["Submódulo 2,2 - Encargos previdenciários e FGTS"]
["2.2","GPS, FGTS e Outras Contribuições","%","R$"]
["A","INSS ",null,{"$f":"C43*(D29)","v":0}]
["B","Salário Educação",null,{"$f":"C44*(D29)","v":0}]
["C","Seguro Acidente de Trabalho (Corrigido conforme FAP e GEFIP em anexo )",null,{"$f":"C45*(D29)","v":0}]
["D","SESI ou SESC",null,{"$f":"C46*(D29)","v":0}]
["E","SANAI / SENAC",null,{"$f":"C47*(D29)","v":0}]
["F","SEBRAE",null,{"$f":"C48*(D29)","v":0}]
["G","INCRA",null,{"$f":"C49*(D29)","v":0}]
["H","FGTS",null,{"$f":"C50*(D29)","v":0}]
["Total",null,{"$f":"SUM(C43:C50)","v":0},{"$f":"SUM(D43:D50)","v":0}]
[]
["Submódulo 2.3 - Benefícios Mensais e Diários"]
["Sumódulo 2.3","Benefícios Mensais e Diários","%","R$"]
["A","Transporte  "]
[null,"Dedução legal de 6% sobre o salário",null,{"$f":"-6%*D22","v":0}]
["B","Auxilio Alimentação"]
["C","Plano de Saúde"]
["D","Assistência odontológica"]
["E","Auxilio funeral/Seguro de vida"]
["Total",null,null,{"$f":"SUM(D55:D60)","v":0}]
[]
["Quadro- Resumo do Módulo 2 - Encargos e Benefícios Anuais, Mensais e Diários"]
[2,"Encargos e Beneficios Anuais, Mensais e Dários","%","R$"]
["2.1","13º (décimo terceiro) salário, férias e adicional de férias",{"$f":"C38","v":0},{"$f":"D38","v":0}]
["2.2","GPS, FGTS e outras contribuições",{"$f":"C51","v":0},{"$f":"D51","v":0}]
["2.3","Beneficios Mensais e diários",null,{"$f":"D61","v":0}]
["Total",null,{"$f":"SUM(C65:C66)","v":0},{"$f":"SUM(D65:D67)","v":0}]
[]
["Módulo 3 -  Provisões para Rescisão"]
["MÓDULO 3","Provisões para Rescisão","%","R$"]
["A","Aviso Prévio Indenizado  ",null,{"$f":"C72*D29","v":0}]
["B","Incidência do FGTS sobre Aviso Prévio Indenizaso",null,{"$f":"C73*D29","v":0}]
["C","Multa do FGTS do Aviso Prévio Indenizado ",null,{"$f":"C74*D29","v":0}]
["D","Aviso Prévio Trabalhado ",null,{"$f":"C75*D29","v":0}]
["E","Incidencia do submódulo 4.1 sobre aviso prévio trabalhado",null,{"$f":"C76*D29","v":0}]
["F","Multa do FGTS do aviso prévio trabalhado ",null,{"$f":"C77*D29","v":0}]
["Total",null,{"$f":"SUM(C72:C77)","v":0},{"$f":"SUM(D72:D77)","v":0}]
[]
["MÓDULO 4"," Custo de Reposição do Profissional Ausente"]
["Submódulo 4.1","Ausências Legais","%","R$"]
["A","Férias ",null,{"$f":"ROUND(C82*D$29,2)","v":0}]
["B","Ausências Legais",null,0]
["C","Licença paternidade ",null,0]
["D","Ausências por acidente de trabalho",null,0]
["E","Afastamento Maternidade",null,0]
["F","Outros (Especificar)",null,0]
["Subtotal",null,{"$f":"SUM(C82:C87)","v":0},{"$f":"SUM(D82:D87)","v":0}]
["G","Incidencia do modulo 2.2 sobre o custo de reposição",{"$f":"C88*C51","v":0},{"$f":"C89*D29","v":0}]
[null,"TOTAL",{"$f":"SUM(C88:C89)","v":0},{"$f":"SUM(D88:D89)","v":0}]
[]
["Submódulo 4.2 - Intrajornada"]
["Submódulo 4.2","Intrajornada",null,"R$"]
["A","Intervalo para repouso ou alimentação",null,0]
["Total",null,null,{"$f":"D94","v":0}]
[]
["Quadro-Resumo do Módulo 4 - Custo de Reposição do Profissional Ausente"]
["4.1","Encargos e Beneficios Anuais, Mensais e Diários",null,"R$"]
["4.1","Ausencias Legais",null,{"$f":"D90","v":0}]
["4.2","Intrajornada",null,{"$f":"D95","v":0}]
["Total",null,null,{"$f":"D99+D100","v":0}]
[]
["Módulo 5 - Insumos Diversos"]
["MÓDULO 5","Insumos Diversos","IPCA/%","R$"]
["A","Uniformes",null,null,73.98]
["B","Materiais   ",null,0]
["C","EQUIPAMENTOS  "]
["D","Outros ( Especificar "]
["Total",null,null,{"$f":"SUM(D105:D107)","v":0}]
[null,"SUBTOTAL",null,{"$f":"D109+D101+D78+D68+D29","v":0}]
["Módulo 6: Custos Indiretos, Tributos e Lucro"]
["MÓDULO 6","Custos Indiretos, Tributos e Lucro","%","R$"]
["A","Custos Indiretos",null,{"$f":"D110*C113","v":0}]
["B","Lucro",null,{"$f":"(D110+D113)*C114","v":0},{"$f":"'RESUMO GERAL'!F11","v":0}]
["C","Tributos",null,{"$f":"(D110+D113+D114)/(100%-C115)*C115","v":0}]
["C1","PIS",null,{"$f":"D130*C116","v":0}]
["C2","COFINS",null,{"$f":"D130*C117","v":0}]
["C3","ISS",null,{"$f":"D130*C118","v":0}]
["Total",null,null,{"$f":"D113+D115+D114","v":0}]
[]
["2. QUADRO-RESUMO DO CUSTO POR EMPREGADO"]
["Mão de obra vinculada à execução contratual (valor por empregado)",null,null,"R$"]
["A","Módulo 1 - Composição da Remuneração",null,{"$f":"D29","v":0}]
["B","Módulo 2 - Encargos e Beneficios Anuais, Mensais e Diários",null,{"$f":"D68","v":0}]
["C","Módulo 3 -Provisão para Rescisão",null,{"$f":"D78","v":0}]
["D","Módulo 4 - Custo de Reposição do Profissional Ausente",null,{"$f":"D101","v":0}]
["E","Módulo 5-  Insumos Diversos",null,{"$f":"D109","v":0}]
["Subtotal (A+B+C+D+E)",null,null,{"$f":"SUM(D123:D127)","v":0}]
["E","Módulo 5 - Custos Indiretos, Tributos e Lucro",null,{"$f":"D119","v":0}]
["Valor Total por EMPREGADO",null,null,{"$f":"(D128+D113+D114)/(1-C115)","v":0}]
["Valor Total por Posto  ",null,null,{"$f":"D130","v":0}]

{"sheet":"Servente","index":2,"n_rows":131,"n_cols":5,"rows_kept":131,"cut":false,"hidden":false,"merged":[[129,0,129,2],[130,0,130,2],[123,1,123,2],[124,1,124,2],[125,1,125,2],[126,1,126,2],[127,0,127,2],[128,1,128,2],[122,1,122,2],[102,0,102,3],[108,0,108,2],[110,0,110,3],[118,0,118,2],[120,0,120,3],[121,0,121,2],[101,0,101,3],[77,0,77,1],[87,0,87,1],[91,0,91,3],[92,1,92,2],[93,1,93,2],[94,0,94,2],[96,0,96,3],[97,1,97,2],[98,1,98,2],[99,1,99,2],[100,0,100,2],[69,0,69,3],[54,0,55,0],[54,1,54,2],[55,1,55,2],[56,1,56,2],[57,1,57,2],[58,1,58,2],[59,1,59,2],[60,0,60,2],[62,0,62,3],[66,1,66,2],[67,0,67,1],[52,0,52,3],[13,1,13,2],[14,1,14,2],[15,1,15,2],[16,1,16,2],[17,1,17,2],[19,0,19,3],[28,1,28,2],[30,2,30,3],[31,0,31,3],[40,0,40,3],[50,0,50,1],[12,0,12,3],[0,0,0,3],[2,0,2,3],[3,1,3,2],[4,1,4,2],[5,1,5,2],[6,1,6,2],[7,0,7,3],[10,0,10,3]]}
["PLANILHA DE CUSTOS E FORMAÇÃO DE PREÇOS"]
["CODEVASF  -  REPACTUAÇÃO 2022 + REAJUSTE DOS INSUMOS"]
["PLANILHA DE CUSTOS E FORMAÇÃO DE PREÇOS   - CODEVASF"]
["A","Data ",null,"2024-04-23"]
["B","Município/UF",null,"Brasília/DF"]
["C","Ano de acordo coletivo, convenção coletiva ou sentença normativa em dissídio coletico",null,2024]
["D","Número de meses de execução contratral",null,12]
[]
[1,"Tipo e serviço (mesmo serviço com características distintas)","Unid. Medida","Quantidade de Funcionários"]
["1.1","SERVENTE","Posto",1]
[]
["Dados complementares para composição dos custos referente á mão-de-obra"]
[]
[1,"Tipo de serviços (mesmo serviço com características distintas)",null,"SERVENTE"]
[2,"Classificação Brasileira de Ocupações ( CBO ) ",null,4110]
[3,"Salário normativo da categoria profissional"]
[4,"Categoria profissional (vinculada à execução contratual)",null,"SERVENTE"]
[5,"Data base da categoria (dia/mês/ano) - SINDISERVIÇOS DF000012/2024",null,"2024-01-01"]
[]
["Módulo 1: Composição da Remuneração"]
["MÓDULO1 ","Composição da Remuneração","%","R$"]
["A","Salário Base ",null,{"$f":"D16+(C22*D16)","v":0}]
["B","Adicional de periculosidade",null,{"$f":"D22*C23","v":0}]
["C","Adicional de Insalubridade ",null,{"$f":"D22*C24","v":0}]
["D","Adicional noturno",null,0]
["E","Adicional de hora noturna reduzida",null,0]
["F","Intervalo Intrajornada",null,{"$f":"(D22+D23)*C27","v":0}]
["H","Outros (Especificar)",null,0]
["I","Total de Remuneração",null,{"$f":"SUM(D22:D28)","v":0}]
[]
["MÓDULO 2","ENCARGOS SOCIAIS E TRABALHISTAS"]
["Submódulo 2.1  - 13º (Décimo Terceiro) Salário, Férias e Adicional de Férias"]
["Submódulo 2.1","13º Salário, Férias e Adicional de Férias","%","R$"]
["A","13º (Décimo Terceiro) Salário",null,{"$f":"C34*D22","v":0}]
["B"," Adicional de férias",null,{"$f":"C35*D29","v":0}]
[null,"TOTAL",{"$f":"SUM(C34:C35)","v":0},{"$f":"SUM(D34:D35)","v":0}]
["c","INCIDÊNCIA -SUBMODULO 2.2 SOBRE O SUBMODULO 2.1 - conforme IN 05/2017",{"$f":"C36*C51","v":0},{"$f":"C37*D29","v":0}]
[null,"Total do Submodulo 2",{"$f":"C36+C37","v":0},{"$f":"D36+D37","v":0}]
[]
["Submódulo 2.2","Encargos Previdenciários(GPS), Fundo de Garantia por tempo de Serviço(FGTS) e outras contribuições"]
["Submódulo 2,2 - Encargos previdenciários e FGTS"]
["2.2","GPS, FGTS e Outras Contribuições","%","R$"]
["A","INSS ",null,{"$f":"C43*(D29)","v":0}]
["B","Salário Educação",null,{"$f":"C44*(D29)","v":0}]
["C","Seguro Acidente de Trabalho (Corrigido conforme FAP e GEFIP em anexo )",null,{"$f":"C45*(D29)","v":0}]
["D","SESI ou SESC",null,{"$f":"C46*(D29)","v":0}]
["E","SANAI / SENAC",null,{"$f":"C47*(D29)","v":0}]
["F","SEBRAE",null,{"$f":"C48*(D29)","v":0}]
["G","INCRA",null,{"$f":"C49*(D29)","v":0}]
["H","FGTS",null,{"$f":"C50*(D29)","v":0}]
["Total",null,{"$f":"SUM(C43:C50)","v":0},{"$f":"SUM(D43:D50)","v":0}]
[]
["Submódulo 2.3 - Benefícios Mensais e Diários"]
["Sumódulo 2.3","Benefícios Mensais e Diários","%","R$"]
["A","Transporte "]
[null,"Dedução legal de 6% sobre o salário",null,{"$f":"-6%*D22","v":0}]
["B","Auxilio Alimentação "]
["C","Plano de Saúde"]
["D","Assistência odontológica"]
["E","Auxilio funeral/Seguro de vida"]
["Total",null,null,{"$f":"SUM(D55:D60)","v":0}]
[]
["Quadro- Resumo do Módulo 2 - Encargos e Benefícios Anuais, Mensais e Diários"]
[2,"Encargos e Beneficios Anuais, Mensais e Dários","%","R$"]
["2.1","13º (décimo terceiro) salário, férias e adicional de férias",null,{"$f":"D38","v":0}]
["2.2","GPS, FGTS e outras contribuições",null,{"$f":"D51","v":0}]
["2.3","Beneficios Mensais e diários",null,{"$f":"D61","v":0}]
["Total",null,{"$f":"SUM(C65:C66)","v":0},{"$f":"SUM(D65:D67)","v":0}]
[]
["Módulo 3 -  Provisões para Rescisão"]
["MÓDULO 3","Provisões para Rescisão","%","R$"]
["A","Aviso Prévio Indenizado  ",null,{"$f":"C72*D29","v":0}]
["B","Incidência do FGTS sobre Aviso Prévio Indenizaso",null,{"$f":"C73*D29","v":0}]
["C","Multa do FGTS do Aviso Prévio Indenizado ",null,{"$f":"C74*D29","v":0}]
["D","Aviso Prévio Trabalhado ",null,{"$f":"C75*D29","v":0}]
["E","Incidencia do submódulo 4.1 sobre aviso prévio trabalhado",null,{"$f":"C76*D29","v":0}]
["F","Multa do FGTS do aviso prévio trabalhado ",null,{"$f":"C77*D29","v":0}]
["Total",null,{"$f":"SUM(C72:C77)","v":0},{"$f":"SUM(D72:D77)","v":0}]
[]
["MÓDULO 4"," Custo de Reposição do Profissional Ausente"]
["Submódulo 4.1","Ausências Legais","%","R$"]
["A","Férias ",null,{"$f":"ROUND(C82*D$29,2)","v":0}]
["B","Ausências Legais",null,0]
["C","Licença paternidade ",null,0]
["D","Ausências por acidente de trabalho",null,0]
["E","Afastamento Maternidade",null,0]
["F","Outros (Especificar)",null,0]
["Subtotal",null,{"$f":"SUM(C82:C87)","v":0},{"$f":"SUM(D82:D87)","v":0}]
["G","Incidencia do modulo 2.2 sobre o custo de reposição",{"$f":"C88*C51","v":0},{"$f":"C89*D29","v":0}]
[null,"TOTAL",{"$f":"SUM(C88:C89)","v":0},{"$f":"SUM(D88:D89)","v":0}]
[]
["Submódulo 4.2 - Intrajornada"]
["Submódulo 4.2","Intrajornada",null,"R$"]
["A","Intervalo para repouso ou alimentação",null,0]
["Total",null,null,{"$f":"D94","v":0}]
[]
["Quadro-Resumo do Módulo 4 - Custo de Reposição do Profissional Ausente"]
["4.1","Encargos e Beneficios Anuais, Mensais e Diários",null,"R$"]
["4.1","Ausencias Legais",null,{"$f":"D90","v":0}]
["4.2","Intrajornada",null,{"$f":"D95","v":0}]
["Total",null,null,{"$f":"D99+D100","v":0}]
[]
["Módulo 5 - Insumos Diversos"]
["MÓDULO 5","Insumos Diversos","IPCA/%","R$"]
["A","Uniformes  ",null,null,51.41]
["B","Materiais    ",null,null,713.42]
["C","EQUIPAMENTOS  ",null,null,11.29]
["D","Outros ( Especificar  ",null,null,4.6900000000000004]
["Total",null,null,{"$f":"SUM(D105:D108)","v":0}]
[null,"SUBTOTAL",null,{"$f":"D109+D101+D78+D68+D29","v":0}]
["Módulo 6: Custos Indiretos, Tributos e Lucro"]
["MÓDULO 6","Custos Indiretos, Tributos e Lucro","%","R$"]
["A","Custos Indiretos",null,{"$f":"D110*C113","v":0}]
["B","Lucro",null,{"$f":"(D110+D113)*C114","v":0}]
["C","Tributos",null,{"$f":"(D110+D113+D114)/(100%-C115)*C115","v":0}]
["C1","PIS",null,{"$f":"D130*C116","v":0}]
["C2","COFINS",null,{"$f":"D130*C117","v":0}]
["C3","ISS",null,{"$f":"D130*C118","v":0}]
["Total",null,null,{"$f":"D113+D115+D114","v":0}]
[]
["2. QUADRO-RESUMO DO CUSTO POR EMPREGADO"]
["Mão de obra vinculada à execução contratual (valor por empregado)",null,null,"R$"]
["A","Módulo 1 - Composição da Remuneração",null,{"$f":"D29","v":0}]
["B","Módulo 2 - Encargos e Beneficios Anuais, Mensais e Diários",null,{"$f":"D68","v":0}]
["C","Módulo 3 -Provisão para Rescisão",null,{"$f":"D78","v":0}]
["D","Módulo 4 - Custo de Reposição do Profissional Ausente",null,{"$f":"D101","v":0}]
["E","Módulo 5-  Insumos Diversos",null,{"$f":"D109","v":0}]
["Subtotal (A+B+C+D+E)",null,null,{"$f":"SUM(D123:D127)","v":0}]
["E","Módulo 5 - Custos Indiretos, Tributos e Lucro",null,{"$f":"D119","v":0}]
["Valor Total por EMPREGADO",null,null,{"$f":"(D128+D113+D114)/(1-C115)","v":0}]
["Valor Total por Posto  ",null,null,{"$f":"D130","v":0}]

{"sheet":"Copeira","index":3,"n_rows":131,"n_cols":5,"rows_kept":131,"cut":false,"hidden":false,"merged":[[129,0,129,2],[130,0,130,2],[123,1,123,2],[124,1,124,2],[125,1,125,2],[126,1,126,2],[127,0,127,2],[128,1,128,2],[122,1,122,2],[102,0,102,3],[108,0,108,2],[110,0,110,3],[118,0,118,2],[120,0,120,3],[121,0,121,2],[101,0,101,3],[77,0,77,1],[87,0,87,1],[91,0,91,3],[92,1,92,2],[93,1,93,2],[94,0,94,2],[96,0,96,3],[97,1,97,2],[98,1,98,2],[99,1,99,2],[100,0,100,2],[69,0,69,3],[54,0,55,0],[54,1,54,2],[55,1,55,2],[56,1,56,2],[57,1,57,2],[58,1,58,2],[59,1,59,2],[60,0,60,2],[62,0,62,3],[66,1,66,2],[67,0,67,1],[52,0,52,3],[13,1,13,2],[14,1,14,2],[15,1,15,2],[16,1,16,2],[17,1,17,2],[19,0,19,3],[28,1,28,2],[30,2,30,3],[31,0,31,3],[40,0,40,3],[50,0,50,1],[12,0,12,3],[0,0,0,3],[2,0,2,3],[3,1,3,2],[4,1,4,2],[5,1,5,2],[6,1,6,2],[7,0,7,3],[10,0,10,3]]}
["PLANILHA DE CUSTOS E FORMAÇÃO DE PREÇOS"]
["CODEVASF  -  REPACTUAÇÃO 2022 + REAJUSTE DOS INSUMOS"]
["PLANILHA DE CUSTOS E FORMAÇÃO DE PREÇOS   - CODEVASF"]
["A","Data ",null,"2024-04-23"]
["B","Município/UF",null,"Brasília/DF"]
["C","Ano de acordo coletivo, convenção coletiva ou sentença normativa em dissídio coletico",null,2024]
["D","Número de meses de execução contratral",null,12]
[]
[1,"Tipo e serviço (mesmo serviço com características distintas)","Unid. Medida","Quantidade de Funcionários"]
["1.1","COPEIRA","Posto",1]
[]
["Dados complementares para composição dos custos referente á mão-de-obra"]
[]
[1,"Tipo de serviços (mesmo serviço com características distintas)",null,"COPEIRA"]
[2,"Classificação Brasileira de Ocupações ( CBO ) ",null,4110]
[3,"Salário normativo da categoria profissional"]
[4,"Categoria profissional (vinculada à execução contratual)",null,"COPEIRA"]
[5,"Data base da categoria (dia/mês/ano) - SINDISERVIÇOS DF000012/2024",null,"2024-01-01"]
[]
["Módulo 1: Composição da Remuneração"]
["MÓDULO1 ","Composição da Remuneração","%","R$"]
["A","Salário Base ",null,{"$f":"D16+(C22*D16)","v":0}]
["B","Adicional de periculosidade",null,{"$f":"D22*C23","v":0}]
["C","Adicional de Insalubridade ",null,{"$f":"D22*C24","v":0}]
["D","Adicional noturno",null,0]
["E","Adicional de hora noturna reduzida",null,0]
["F","Intervalo Intrajornada",null,{"$f":"(D22+D23)*C27","v":0}]
["H","Outros (Especificar)",null,0]
["I","Total de Remuneração",null,{"$f":"SUM(D22:D28)","v":0}]
[]
["MÓDULO 2","ENCARGOS SOCIAIS E TRABALHISTAS"]
["Submódulo 2.1  - 13º (Décimo Terceiro) Salário, Férias e Adicional de Férias"]
["Submódulo 2.1","13º Salário, Férias e Adicional de Férias","%","R$"]
["A","13º (Décimo Terceiro) Salário",null,{"$f":"C34*D22","v":0}]
["B"," Adicional de férias",null,{"$f":"C35*D29","v":0}]
[null,"TOTAL",{"$f":"SUM(C34:C35)","v":0},{"$f":"SUM(D34:D35)","v":0}]
["c","INCIDÊNCIA -SUBMODULO 2.2 SOBRE O SUBMODULO 2.1 - conforme IN 05/2017",{"$f":"C36*C51","v":0},{"$f":"C37*D29","v":0}]
[null,"Total do Submodulo 2",{"$f":"C36+C37","v":0},{"$f":"D36+D37","v":0}]
[]
["Submódulo 2.2","Encargos Previdenciários(GPS), Fundo de Garantia por tempo de Serviço(FGTS) e outras contribuições"]
["Submódulo 2,2 - Encargos previdenciários e FGTS"]
["2.2","GPS, FGTS e Outras Contribuições","%","R$"]
["A","INSS ",null,{"$f":"C43*(D29)","v":0}]
["B","Salário Educação",null,{"$f":"C44*(D29)","v":0}]
["C","Seguro Acidente de Trabalho (Corrigido conforme FAP e GEFIP em anexo )",null,{"$f":"C45*(D29)","v":0}]
["D","SESI ou SESC",null,{"$f":"C46*(D29)","v":0}]
["E","SANAI / SENAC",null,{"$f":"C47*(D29)","v":0}]
["F","SEBRAE",null,{"$f":"C48*(D29)","v":0}]
["G","INCRA",null,{"$f":"C49*(D29)","v":0}]
["H","FGTS",null,{"$f":"C50*(D29)","v":0}]
["Total",null,{"$f":"SUM(C43:C50)","v":0},{"$f":"SUM(D43:D50)","v":0}]
[]
["Submódulo 2.3 - Benefícios Mensais e Diários"]
["Sumódulo 2.3","Benefícios Mensais e Diários","%","R$"]
["A","Transporte                     "]
[null,"Dedução legal de 6% sobre o salário  ",null,{"$f":"-6%*D22","v":0}]
["B","Auxilio Alimentação"]
["C","Plano de Saúde"]
["D","Assistência odontológica"]
["E","Auxilio funeral/Seguro de vida"]
["Total",null,null,{"$f":"SUM(D55:D60)","v":0}]
[]
["Quadro- Resumo do Módulo 2 - Encargos e Benefícios Anuais, Mensais e Diários"]
[2,"Encargos e Beneficios Anuais, Mensais e Dários","%","R$"]
["2.1","13º (décimo terceiro) salário, férias e adicional de férias",null,{"$f":"D38","v":0}]
["2.2","GPS, FGTS e outras contribuições",null,{"$f":"D51","v":0}]
["2.3","Beneficios Mensais e diários",null,{"$f":"D61","v":0}]
["Total",null,{"$f":"SUM(C65:C66)","v":0},{"$f":"SUM(D65:D67)","v":0}]
[]
["Módulo 3 -  Provisões para Rescisão"]
["MÓDULO 3","Provisões para Rescisão","%","R$"]
["A","Aviso Prévio Indenizado  ",null,{"$f":"C72*D29","v":0}]
["B","Incidência do FGTS sobre Aviso Prévio Indenizaso",null,{"$f":"C73*D29","v":0}]
["C","Multa do FGTS do Aviso Prévio Indenizado ",null,{"$f":"C74*D29","v":0}]
["D","Aviso Prévio Trabalhado ",null,{"$f":"C75*D29","v":0}]
["E","Incidencia do submódulo 4.1 sobre aviso prévio trabalhado",null,{"$f":"C76*D29","v":0}]
["F","Multa do FGTS do aviso prévio trabalhado ",null,{"$f":"C77*D29","v":0}]
["Total",null,{"$f":"SUM(C72:C77)","v":0},{"$f":"SUM(D72:D77)","v":0}]
[]
["MÓDULO 4"," Custo de Reposição do Profissional Ausente"]
["Submódulo 4.1","Ausências Legais","%","R$"]
["A","Férias ",null,{"$f":"ROUND(C82*D$29,2)","v":0}]
["B","Ausências Legais",null,0]
["C","Licença paternidade ",null,0]
["D","Ausências por acidente de trabalho",null,0]
["E","Afastamento Maternidade",null,0]
["F","Outros (Especificar)",0,0]
["Subtotal",null,{"$f":"SUM(C82:C87)","v":0},{"$f":"SUM(D82:D87)","v":0}]
["G","Incidencia do modulo 2.2 sobre o custo de reposição",{"$f":"C88*C51","v":0},{"$f":"C89*D29","v":0}]
[null,"TOTAL",{"$f":"SUM(C88:C89)","v":0},{"$f":"SUM(D88:D89)","v":0}]
[]
["Submódulo 4.2 - Intrajornada"]
["Submódulo 4.2","Intrajornada",null,"R$"]
["A","Intervalo para repouso ou alimentação",null,0]
["Total",null,null,{"$f":"D94","v":0}]
[]
["Quadro-Resumo do Módulo 4 - Custo de Reposição do Profissional Ausente"]
["4.1","Encargos e Beneficios Anuais, Mensais e Diários",null,"R$"]
["4.1","Ausencias Legais",null,{"$f":"D90","v":0}]
["4.2","Intrajornada",null,{"$f":"D95","v":0}]
["Total",null,null,{"$f":"D99+D100","v":0}]
[]
["Módulo 5 - Insumos Diversos"]
["MÓDULO 5","Insumos Diversos","IPCA/%","R$"]
["A","Uniformes ",null,null,64.91]
["B","Materiais  ",null,null,117.81]
["C","EQUIPAMENTOS  "]
["D","Outros ( Especificar   "]
["Total",null,null,{"$f":"SUM(D105:D107)","v":0}]
[null,"SUBTOTAL",null,{"$f":"D109+D101+D78+D68+D29","v":0}]
["Módulo 6: Custos Indiretos, Tributos e Lucro"]
["MÓDULO 6","Custos Indiretos, Tributos e Lucro","%","R$"]
["A","Custos Indiretos",null,{"$f":"D110*C113","v":0}]
["B","Lucro",null,{"$f":"(D110+D113)*C114","v":0}]
["C","Tributos",null,{"$f":"(D110+D113+D114)/(100%-C115)*C115","v":0}]
["C1","PIS",null,{"$f":"D130*C116","v":0}]
["C2","COFINS",null,{"$f":"D130*C117","v":0}]
["C3","ISS",null,{"$f":"D130*C118","v":0}]
["Total",null,null,{"$f":"D113+D115+D114","v":0}]
[]
["2. QUADRO-RESUMO DO CUSTO POR EMPREGADO"]
["Mão de obra vinculada à execução contratual (valor por empregado)",null,null,"R$"]
["A","Módulo 1 - Composição da Remuneração",null,{"$f":"D29","v":0}]
["B","Módulo 2 - Encargos e Beneficios Anuais, Mensais e Diários",null,{"$f":"D68","v":0}]
["C","Módulo 3 -Provisão para Rescisão",null,{"$f":"D78","v":0}]
["D","Módulo 4 - Custo de Reposição do Profissional Ausente",null,{"$f":"D101","v":0}]
["E","Módulo 5-  Insumos Diversos",null,{"$f":"D109","v":0}]
["Subtotal (A+B+C+D+E)",null,null,{"$f":"SUM(D123:D127)","v":0}]
["E","Módulo 5 - Custos Indiretos, Tributos e Lucro",null,{"$f":"D119","v":0}]
["Valor Total por EMPREGADO",null,null,{"$f":"(D128+D113+D114)/(1-C115)","v":0}]
["Valor Total por Posto  ",null,null,{"$f":"D130","v":0}]

{"sheet":"GARÇOM","index":4,"n_rows":131,"n_cols":5,"rows_kept":131,"cut":false,"hidden":false,"merged":[[129,0,129,2],[130,0,130,2],[123,1,123,2],[124,1,124,2],[125,1,125,2],[126,1,126,2],[127,0,127,2],[128,1,128,2],[122,1,122,2],[102,0,102,3],[108,0,108,2],[110,0,110,3],[118,0,118,2],[120,0,120,3],[121,0,121,2],[101,0,101,3],[77,0,77,1],[87,0,87,1],[91,0,91,3],[92,1,92,2],[93,1,93,2],[94,0,94,2],[96,0,96,3],[97,1,97,2],[98,1,98,2],[99,1,99,2],[100,0,100,2],[69,0,69,3],[54,0,55,0],[54,1,54,2],[55,1,55,2],[56,1,56,2],[57,1,57,2],[58,1,58,2],[59,1,59,2],[60,0,60,2],[62,0,62,3],[66,1,66,2],[67,0,67,1],[52,0,52,3],[13,1,13,2],[14,1,14,2],[15,1,15,2],[16,1,16,2],[17,1,17,2],[19,0,19,3],[28,1,28,2],[30,2,30,3],[31,0,31,3],[40,0,40,3],[50,0,50,1],[12,0,12,3],[0,0,0,3],[2,0,2,3],[3,1,3,2],[4,1,4,2],[5,1,5,2],[6,1,6,2],[7,0,7,3],[10,0,10,3]]}
["PLANILHA DE CUSTOS E FORMAÇÃO DE PREÇOS"]
["CODEVASF  -  REPACTUAÇÃO 2022 + REAJUSTE DOS INSUMOS"]
["PLANILHA DE CUSTOS E FORMAÇÃO DE PREÇOS   - CODEVASF"]
["A","Data ",null,"2024-04-23"]
["B","Município/UF",null,"Brasília/DF"]
["C","Ano de acordo coletivo, convenção coletiva ou sentença normativa em dissídio coletico",null,2024]
["D","Número de meses de execução contratral",null,12]
[]
[1,"Tipo e serviço (mesmo serviço com características distintas)","Unid. Medida","Quantidade de Funcionários"]
["1.1","GARÇOM","Posto",1]
[]
["Dados complementares para composição dos custos referente á mão-de-obra"]
[]
[1,"Tipo de serviços (mesmo serviço com características distintas)",null,"GARÇOM"]
[2,"Classificação Brasileira de Ocupações ( CBO ) ",null,4110]
[3,"Salário normativo da categoria profissional"]
[4,"Categoria profissional (vinculada à execução contratual)",null,"GARÇOM"]
[5,"Data base da categoria (dia/mês/ano) - SINDISERVIÇOS DF000012/2024",null,"2024-01-01"]
[]
["Módulo 1: Composição da Remuneração"]
["MÓDULO1 ","Composição da Remuneração","%","R$"]
["A","Salário Base ",null,{"$f":"D16+(C22*D16)","v":0}]
["B","Adicional de periculosidade",null,{"$f":"D22*C23","v":0}]
["C","Adicional de Insalubridade ",null,{"$f":"D22*C24","v":0}]
["D","Adicional noturno",null,0]
["E","Adicional de hora noturna reduzida",null,0]
["F","Intervalo Intrajornada",null,{"$f":"(D22+D23)*C27","v":0}]
["H","Outros (Especificar)",null,0]
["I","Total de Remuneração",null,{"$f":"SUM(D22:D28)","v":0}]
[]
["MÓDULO 2","ENCARGOS SOCIAIS E TRABALHISTAS"]
["Submódulo 2.1  - 13º (Décimo Terceiro) Salário, Férias e Adicional de Férias"]
["Submódulo 2.1","13º Salário, Férias e Adicional de Férias","%","R$"]
["A","13º (Décimo Terceiro) Salário",null,{"$f":"C34*D22","v":0}]
["B"," Adicional de férias",null,{"$f":"C35*D29","v":0}]
[null,"TOTAL",{"$f":"SUM(C34:C35)","v":0},{"$f":"SUM(D34:D35)","v":0}]
["c","INCIDÊNCIA -SUBMODULO 2.2 SOBRE O SUBMODULO 2.1 - conforme IN 05/2017",{"$f":"C36*C51","v":0},{"$f":"C37*D29","v":0}]
[null,"Total do Submodulo 2",{"$f":"C36+C37","v":0},{"$f":"D36+D37","v":0}]
[]
["Submódulo 2.2","Encargos Previdenciários(GPS), Fundo de Garantia por tempo de Serviço(FGTS) e outras contribuições"]
["Submódulo 2,2 - Encargos previdenciários e FGTS"]
["2.2","GPS, FGTS e Outras Contribuições","%","R$"]
["A","INSS ",null,{"$f":"C43*(D29)","v":0}]
["B","Salário Educação",null,{"$f":"C44*(D29)","v":0}]
["C","Seguro Acidente de Trabalho (Corrigido conforme FAP e GEFIP em anexo )",null,{"$f":"C45*(D29)","v":0}]
["D","SESI ou SESC",null,{"$f":"C46*(D29)","v":0}]
["E","SANAI / SENAC",null,{"$f":"C47*(D29)","v":0}]
["F","SEBRAE",null,{"$f":"C48*(D29)","v":0}]
["G","INCRA",null,{"$f":"C49*(D29)","v":0}]
["H","FGTS",null,{"$f":"C50*(D29)","v":0}]
["Total",null,{"$f":"SUM(C43:C50)","v":0},{"$f":"SUM(D43:D50)","v":0}]
[]
["Submódulo 2.3 - Benefícios Mensais e Diários"]
["Sumódulo 2.3","Benefícios Mensais e Diários","%","R$"]
["A","Transporte                       "]
[null,"Dedução legal de 6% sobre o salário  ",null,{"$f":"-6%*D22","v":0}]
["B","Auxilio Alimentação"]
["C","Plano de Saúde"]
["D","Assistência odontológica"]
["E","Auxilio funeral/Seguro de vida"]
["Total",null,null,{"$f":"SUM(D55:D60)","v":0}]
[]
["Quadro- Resumo do Módulo 2 - Encargos e Benefícios Anuais, Mensais e Diários"]
[2,"Encargos e Beneficios Anuais, Mensais e Dários","%","R$"]
["2.1","13º (décimo terceiro) salário, férias e adicional de férias",{"$f":"C38","v":0},{"$f":"D38","v":0}]
["2.2","GPS, FGTS e outras contribuições",{"$f":"C51","v":0},{"$f":"D51","v":0}]
["2.3","Beneficios Mensais e diários",null,{"$f":"D61","v":0}]
["Total",null,{"$f":"SUM(C65:C66)","v":0},{"$f":"SUM(D65:D67)","v":0}]
[]
["Módulo 3 -  Provisões para Rescisão"]
["MÓDULO 3","Provisões para Rescisão","%","R$"]
["A","Aviso Prévio Indenizado  ",null,{"$f":"C72*D29","v":0}]
["B","Incidência do FGTS sobre Aviso Prévio Indenizaso",null,{"$f":"C73*D29","v":0}]
["C","Multa do FGTS do Aviso Prévio Indenizado ",null,{"$f":"C74*D29","v":0}]
["D","Aviso Prévio Trabalhado ",null,{"$f":"C75*D29","v":0}]
["E","Incidencia do submódulo 4.1 sobre aviso prévio trabalhado",null,{"$f":"C76*D29","v":0}]
["F","Multa do FGTS do aviso prévio trabalhado ",null,{"$f":"C77*D29","v":0}]
["Total",null,{"$f":"SUM(C72:C77)","v":0},{"$f":"SUM(D72:D77)","v":0}]
[]
["MÓDULO 4"," Custo de Reposição do Profissional Ausente"]
["Submódulo 4.1","Ausências Legais","%","R$"]
["A","Férias ",null,{"$f":"ROUND(C82*D$29,2)","v":0}]
["B","Ausências Legais",null,0]
["C","Licença paternidade ",null,0]
["D","Ausências por acidente de trabalho",null,0]
["E","Afastamento Maternidade",null,0]
["F","Outros (Especificar)",null,0]
["Subtotal",null,{"$f":"SUM(C82:C87)","v":0},{"$f":"SUM(D82:D87)","v":0}]
["G","Incidencia do modulo 2.2 sobre o custo de reposição",{"$f":"C88*C51","v":0},{"$f":"C89*D29","v":0}]
[null,"TOTAL",{"$f":"SUM(C88:C89)","v":0},{"$f":"SUM(D88:D89)","v":0}]
[]
["Submódulo 4.2 - Intrajornada"]
["Submódulo 4.2","Intrajornada",null,"R$"]
["A","Intervalo para repouso ou alimentação",null,0]
["Total",null,null,{"$f":"D94","v":0}]
[]
["Quadro-Resumo do Módulo 4 - Custo de Reposição do Profissional Ausente"]
["4.1","Encargos e Beneficios Anuais, Mensais e Diários",null,"R$"]
["4.1","Ausencias Legais",null,{"$f":"D90","v":0}]
["4.2","Intrajornada",null,{"$f":"D95","v":0}]
["Total",null,null,{"$f":"D99+D100","v":0}]
[]
["Módulo 5 - Insumos Diversos"]
["MÓDULO 5","Insumos Diversos","IPCA/%","R$"]
["A","Uniformes  ",null,null,65.349999999999994]
["B","Materiais   ",null,{"$f":"713.42*C106","v":0}]
["C","EQUIPAMENTOS  ",null,{"$f":"11.29*C107","v":0}]
["D","Outros ( Especificar )",null,{"$f":"4.69*C108","v":0}]
["Total",null,null,{"$f":"SUM(D105:D107)","v":0}]
[null,"SUBTOTAL",null,{"$f":"D109+D101+D78+D68+D29","v":0}]
["Módulo 6: Custos Indiretos, Tributos e Lucro"]
["MÓDULO 6","Custos Indiretos, Tributos e Lucro","%","R$"]
["A","Custos Indiretos",null,{"$f":"D110*C113","v":0}]
["B","Lucro",null,{"$f":"(D110+D113)*C114","v":0}]
["C","Tributos",null,{"$f":"(D110+D113+D114)/(100%-C115)*C115","v":0}]
["C1","PIS",null,{"$f":"D130*C116","v":0}]
["C2","COFINS",null,{"$f":"D130*C117","v":0}]
["C3","ISS",null,{"$f":"D130*C118","v":0}]
["Total",null,null,{"$f":"D113+D115+D114","v":0}]
[]
["2. QUADRO-RESUMO DO CUSTO POR EMPREGADO"]
["Mão de obra vinculada à execução contratual (valor por empregado)",null,null,"R$"]
["A","Módulo 1 - Composição da Remuneração",null,{"$f":"D29","v":0}]
["B","Módulo 2 - Encargos e Beneficios Anuais, Mensais e Diários",null,{"$f":"D68","v":0}]
["C","Módulo 3 -Provisão para Rescisão",null,{"$f":"D78","v":0}]
["D","Módulo 4 - Custo de Reposição do Profissional Ausente",null,{"$f":"D101","v":0}]
["E","Módulo 5-  Insumos Diversos",null,{"$f":"D109","v":0}]
["Subtotal (A+B+C+D+E)",null,null,{"$f":"SUM(D123:D127)","v":0}]
["E","Módulo 5 - Custos Indiretos, Tributos e Lucro",null,{"$f":"D119","v":0}]
["Valor Total por EMPREGADO",null,null,{"$f":"(D128+D113+D114)/(1-C115)","v":0}]
["Valor Total por Posto  ",null,null,{"$f":"D130","v":0}]

{"sheet":"Jardineiro","index":5,"n_rows":131,"n_cols":5,"rows_kept":131,"cut":false,"hidden":false,"merged":[[129,0,129,2],[130,0,130,2],[123,1,123,2],[124,1,124,2],[125,1,125,2],[126,1,126,2],[127,0,127,2],[128,1,128,2],[122,1,122,2],[102,0,102,3],[108,0,108,2],[110,0,110,3],[118,0,118,2],[120,0,120,3],[121,0,121,2],[101,0,101,3],[77,0,77,1],[87,0,87,1],[91,0,91,3],[92,1,92,2],[93,1,93,2],[94,0,94,2],[96,0,96,3],[97,1,97,2],[98,1,98,2],[99,1,99,2],[100,0,100,2],[69,0,69,3],[54,0,55,0],[54,1,54,2],[55,1,55,2],[56,1,56,2],[57,1,57,2],[58,1,58,2],[59,1,59,2],[60,0,60,2],[62,0,62,3],[66,1,66,2],[67,0,67,1],[52,0,52,3],[13,1,13,2],[14,1,14,2],[15,1,15,2],[16,1,16,2],[17,1,17,2],[19,0,19,3],[28,1,28,2],[30,2,30,3],[31,0,31,3],[40,0,40,3],[50,0,50,1],[12,0,12,3],[0,0,0,3],[2,0,2,3],[3,1,3,2],[4,1,4,2],[5,1,5,2],[6,1,6,2],[7,0,7,3],[10,0,10,3]]}
["PLANILHA DE CUSTOS E FORMAÇÃO DE PREÇOS"]
["CODEVASF  -  REPACTUAÇÃO 2022 + REAJUSTE DOS INSUMOS"]
["PLANILHA DE CUSTOS E FORMAÇÃO DE PREÇOS   - CODEVASF"]
["A","Data ",null,"2024-04-23"]
["B","Município/UF",null,"Brasília/DF"]
["C","Ano de acordo coletivo, convenção coletiva ou sentença normativa em dissídio coletico",null,2024]
["D","Número de meses de execução contratral",null,12]
[]
[1,"Tipo e serviço (mesmo serviço com características distintas)","Unid. Medida","Quantidade de Funcionários"]
["1.1","BOMBEIRO HIDRÁULICO","Posto",1]
[]
["Dados complementares para composição dos custos referente á mão-de-obra"]
[]
[1,"Tipo de serviços (mesmo serviço com características distintas)",null,"JARDINEIRO"]
[2,"Classificação Brasileira de Ocupações ( CBO ) ",null,622010]
[3,"Salário normativo da categoria profissional"]
[4,"Categoria profissional (vinculada à execução contratual)",null,"JARDINEIRO"]
[5,"Data base da categoria (dia/mês/ano) - SINDISERVIÇOS DF000012/2024",null,"2024-01-01"]
[]
["Módulo 1: Composição da Remuneração"]
["MÓDULO1 ","Composição da Remuneração","%","R$"]
["A","Salário Base ",null,{"$f":"D16+(C22*D16)","v":0}]
["B","Adicional de periculosidade",null,{"$f":"D22*C23","v":0}]
["C","Adicional de Insalubridade ",null,{"$f":"D22*C24","v":0}]
["D","Adicional noturno",null,0]
["E","Adicional de hora noturna reduzida",null,0]
["F","Intervalo Intrajornada",null,{"$f":"(D22+D23)*C27","v":0}]
["H","Outros (Especificar)",null,0]
["I","Total de Remuneração",null,{"$f":"SUM(D22:D28)","v":0}]
[]
["MÓDULO 2","ENCARGOS SOCIAIS E TRABALHISTAS"]
["Submódulo 2.1  - 13º (Décimo Terceiro) Salário, Férias e Adicional de Férias"]
["Submódulo 2.1","13º Salário, Férias e Adicional de Férias","%","R$"]
["A","13º (Décimo Terceiro) Salário",null,{"$f":"C34*D22","v":0}]
["B"," Adicional de férias",null,{"$f":"C35*D29","v":0}]
[null,"TOTAL",{"$f":"SUM(C34:C35)","v":0},{"$f":"SUM(D34:D35)","v":0}]
["c","INCIDÊNCIA -SUBMODULO 2.2 SOBRE O SUBMODULO 2.1 - conforme IN 05/2017",{"$f":"C36*C51","v":0},{"$f":"C37*D29","v":0}]
[null,"Total do Submodulo 2",{"$f":"C36+C37","v":0},{"$f":"D36+D37","v":0}]
[]
["Submódulo 2.2","Encargos Previdenciários(GPS), Fundo de Garantia por tempo de Serviço(FGTS) e outras contribuições"]
["Submódulo 2,2 - Encargos previdenciários e FGTS"]
["2.2","GPS, FGTS e Outras Contribuições","%","R$"]
["A","INSS ",null,{"$f":"C43*(D29)","v":0}]
["B","Salário Educação",null,{"$f":"C44*(D29)","v":0}]
["C","Seguro Acidente de Trabalho (Corrigido conforme FAP e GEFIP em anexo )",null,{"$f":"C45*(D29)","v":0}]
["D","SESI ou SESC",null,{"$f":"C46*(D29)","v":0}]
["E","SANAI / SENAC",null,{"$f":"C47*(D29)","v":0}]
["F","SEBRAE",null,{"$f":"C48*(D29)","v":0}]
["G","INCRA",null,{"$f":"C49*(D29)","v":0}]
["H","FGTS",null,{"$f":"C50*(D29)","v":0}]
["Total",null,{"$f":"SUM(C43:C50)","v":0},{"$f":"SUM(D43:D50)","v":0}]
[]
["Submódulo 2.3 - Benefícios Mensais e Diários"]
["Sumódulo 2.3","Benefícios Mensais e Diários","%","R$"]
["A","Transporte                       "]
[null,"Dedução legal de 6% sobre o salário  ",null,{"$f":"-6%*D22","v":0}]
["B","Auxilio Alimentação"]
["C","Plano de Saúde"]
["D","Assistência odontológica"]
["E","Auxilio funeral/Seguro de vida"]
["Total",null,null,{"$f":"SUM(D55:D60)","v":0}]
[]
["Quadro- Resumo do Módulo 2 - Encargos e Benefícios Anuais, Mensais e Diários"]
[2,"Encargos e Beneficios Anuais, Mensais e Dários","%","R$"]
["2.1","13º (décimo terceiro) salário, férias e adicional de férias",{"$f":"C38","v":0},{"$f":"D38","v":0}]
["2.2","GPS, FGTS e outras contribuições",{"$f":"C51","v":0},{"$f":"D51","v":0}]
["2.3","Beneficios Mensais e diários",null,{"$f":"D61","v":0}]
["Total",null,{"$f":"SUM(C65:C66)","v":0},{"$f":"SUM(D65:D67)","v":0}]
[]
["Módulo 3 -  Provisões para Rescisão"]
["MÓDULO 3","Provisões para Rescisão","%","R$"]
["A","Aviso Prévio Indenizado  ",null,{"$f":"C72*D29","v":0}]
["B","Incidência do FGTS sobre Aviso Prévio Indenizaso",null,{"$f":"C73*D29","v":0}]
["C","Multa do FGTS do Aviso Prévio Indenizado ",null,{"$f":"C74*D29","v":0}]
["D","Aviso Prévio Trabalhado ",null,{"$f":"C75*D29","v":0}]
["E","Incidencia do submódulo 4.1 sobre aviso prévio trabalhado",null,{"$f":"C76*D29","v":0}]
["F","Multa do FGTS do aviso prévio trabalhado ",null,{"$f":"C77*D29","v":0}]
["Total",null,{"$f":"SUM(C72:C77)","v":0},{"$f":"SUM(D72:D77)","v":0}]
[]
["MÓDULO 4"," Custo de Reposição do Profissional Ausente"]
["Submódulo 4.1","Ausências Legais","%","R$"]
["A","Férias ",null,{"$f":"ROUND(C82*D$29,2)","v":0}]
["B","Ausências Legais",null,0]
["C","Licença paternidade ",null,0]
["D","Ausências por acidente de trabalho",null,0]
["E","Afastamento Maternidade",null,0]
["F","Outros (Especificar)",0,0]
["Subtotal",null,{"$f":"SUM(C82:C87)","v":0},{"$f":"SUM(D82:D87)","v":0}]
["G","Incidencia do modulo 2.2 sobre o custo de reposição",{"$f":"C88*C51","v":0},{"$f":"C89*D29","v":0}]
[null,"TOTAL",{"$f":"SUM(C88:C89)","v":0},{"$f":"SUM(D88:D89)","v":0}]
[]
["Submódulo 4.2 - Intrajornada"]
["Submódulo 4.2","Intrajornada",null,"R$"]
["A","Intervalo para repouso ou alimentação",null,0]
["Total",null,null,{"$f":"D94","v":0}]
[]
["Quadro-Resumo do Módulo 4 - Custo de Reposição do Profissional Ausente"]
["4.1","Encargos e Beneficios Anuais, Mensais e Diários",null,"R$"]
["4.1","Ausencias Legais",null,{"$f":"D90","v":0}]
["4.2","Intrajornada",null,{"$f":"D95","v":0}]
["Total",null,null,{"$f":"D99+D100","v":0}]
[]
["Módulo 5 - Insumos Diversos"]
["MÓDULO 5","Insumos Diversos","IPCA/%","R$"]
["A","Uniformes ",null,null,44.73]
["B","Materiais ",null,null,48.34]
["C","EQUIPAMENTOS    ",null,{"$f":"11.29*C107","v":0}]
["D","Outros ( Especificar   ",null,{"$f":"4.69*C108","v":0}]
["Total",null,null,{"$f":"SUM(D105:D107)","v":0}]
[null,"SUBTOTAL",null,{"$f":"D109+D101+D78+D68+D29","v":0}]
["Módulo 6: Custos Indiretos, Tributos e Lucro"]
["MÓDULO 6","Custos Indiretos, Tributos e Lucro","%","R$"]
["A","Custos Indiretos",null,{"$f":"D110*C113","v":0}]
["B","Lucro",null,{"$f":"(D110+D113)*C114","v":0}]
["C","Tributos",null,{"$f":"(D110+D113+D114)/(100%-C115)*C115","v":0}]
["C1","PIS",null,{"$f":"D130*C116","v":0}]
["C2","COFINS",null,{"$f":"D130*C117","v":0}]
["C3","ISS",null,{"$f":"D130*C118","v":0}]
["Total",null,null,{"$f":"D113+D115+D114","v":0}]
[]
["2. QUADRO-RESUMO DO CUSTO POR EMPREGADO"]
["Mão de obra vinculada à execução contratual (valor por empregado)",null,null,"R$"]
["A","Módulo 1 - Composição da Remuneração",null,{"$f":"D29","v":0}]
["B","Módulo 2 - Encargos e Beneficios Anuais, Mensais e Diários",null,{"$f":"D68","v":0}]
["C","Módulo 3 -Provisão para Rescisão",null,{"$f":"D78","v":0}]
["D","Módulo 4 - Custo de Reposição do Profissional Ausente",null,{"$f":"D101","v":0}]
["E","Módulo 5-  Insumos Diversos",null,{"$f":"D109","v":0}]
["Subtotal (A+B+C+D+E)",null,null,{"$f":"SUM(D123:D127)","v":0}]
["E","Módulo 5 - Custos Indiretos, Tributos e Lucro",null,{"$f":"D119","v":0}]
["Valor Total por EMPREGADO",null,null,{"$f":"(D128+D113+D114)/(1-C115)","v":0}]
["Valor Total por Posto  ",null,null,{"$f":"D130","v":0}]

{"sheet":"Auxiliar de Jardinagem","index":6,"n_rows":131,"n_cols":5,"rows_kept":131,"cut":false,"hidden":false,"merged":[[129,0,129,2],[130,0,130,2],[123,1,123,2],[124,1,124,2],[125,1,125,2],[126,1,126,2],[127,0,127,2],[128,1,128,2],[122,1,122,2],[102,0,102,3],[108,0,108,2],[110,0,110,3],[118,0,118,2],[120,0,120,3],[121,0,121,2],[101,0,101,3],[77,0,77,1],[87,0,87,1],[91,0,91,3],[92,1,92,2],[93,1,93,2],[94,0,94,2],[96,0,96,3],[97,1,97,2],[98,1,98,2],[99,1,99,2],[100,0,100,2],[69,0,69,3],[54,0,55,0],[54,1,54,2],[55,1,55,2],[56,1,56,2],[57,1,57,2],[58,1,58,2],[59,1,59,2],[60,0,60,2],[62,0,62,3],[66,1,66,2],[67,0,67,1],[52,0,52,3],[13,1,13,2],[14,1,14,2],[15,1,15,2],[16,1,16,2],[17,1,17,2],[19,0,19,3],[28,1,28,2],[30,2,30,3],[31,0,31,3],[40,0,40,3],[50,0,50,1],[12,0,12,3],[0,0,0,3],[2,0,2,3],[3,1,3,2],[4,1,4,2],[5,1,5,2],[6,1,6,2],[7,0,7,3],[10,0,10,3]]}
["PLANILHA DE CUSTOS E FORMAÇÃO DE PREÇOS"]
["CODEVASF  -  REPACTUAÇÃO 2022 + REAJUSTE DOS INSUMOS"]
["PLANILHA DE CUSTOS E FORMAÇÃO DE PREÇOS   - CODEVASF"]
["A","Data ",null,"2024-04-23"]
["B","Município/UF",null,"Brasília/DF"]
["C","Ano de acordo coletivo, convenção coletiva ou sentença normativa em dissídio coletico",null,2024]
["D","Número de meses de execução contratral",null,12]
[]
[1,"Tipo e serviço (mesmo serviço com características distintas)","Unid. Medida","Quantidade de Funcionários"]
["1.1","MARCENEIRO","Posto",1]
[]
["Dados complementares para composição dos custos referente á mão-de-obra"]
[]
[1,"Tipo de serviços (mesmo serviço com características distintas)",null,"AUXILIAR DE JARDINAGEM"]
[2,"Classificação Brasileira de Ocupações ( CBO ) ",null,514320]
[3,"Salário normativo da categoria profissional"]
[4,"Categoria profissional (vinculada à execução contratual)",null,"AUXILIAR DE JARDINAGEM"]
[5,"Data base da categoria (dia/mês/ano) - SINDISERVIÇOS DF000012/2024",null,"2024-01-01"]
[]
["Módulo 1: Composição da Remuneração"]
["MÓDULO1 ","Composição da Remuneração","%","R$"]
["A","Salário Base ",null,{"$f":"D16+(C22*D16)","v":0}]
["B","Adicional de periculosidade",null,{"$f":"D22*C23","v":0}]
["C","Adicional de Insalubridade ",null,{"$f":"D22*C24","v":0}]
["D","Adicional noturno",null,0]
["E","Adicional de hora noturna reduzida",null,0]
["F","Intervalo Intrajornada",null,{"$f":"(D22+D23)*C27","v":0}]
["H","Outros (Especificar)",null,0]
["I","Total de Remuneração",null,{"$f":"SUM(D22:D28)","v":0}]
[]
["MÓDULO 2","ENCARGOS SOCIAIS E TRABALHISTAS"]
["Submódulo 2.1  - 13º (Décimo Terceiro) Salário, Férias e Adicional de Férias"]
["Submódulo 2.1","13º Salário, Férias e Adicional de Férias","%","R$"]
["A","13º (Décimo Terceiro) Salário",null,{"$f":"C34*D22","v":0}]
["B"," Adicional de férias",null,{"$f":"C35*D29","v":0}]
[null,"TOTAL",{"$f":"SUM(C34:C35)","v":0},{"$f":"SUM(D34:D35)","v":0}]
["c","INCIDÊNCIA -SUBMODULO 2.2 SOBRE O SUBMODULO 2.1 - conforme IN 05/2017",{"$f":"C36*C51","v":0},{"$f":"C37*D29","v":0}]
[null,"Total do Submodulo 2",{"$f":"C36+C37","v":0},{"$f":"D36+D37","v":0}]
[]
["Submódulo 2.2","Encargos Previdenciários(GPS), Fundo de Garantia por tempo de Serviço(FGTS) e outras contribuições"]
["Submódulo 2,2 - Encargos previdenciários e FGTS"]
["2.2","GPS, FGTS e Outras Contribuições","%","R$"]
["A","INSS ",null,{"$f":"C43*(D29)","v":0}]
["B","Salário Educação",null,{"$f":"C44*(D29)","v":0}]
["C","Seguro Acidente de Trabalho (Corrigido conforme FAP e GEFIP em anexo )",null,{"$f":"C45*(D29)","v":0}]
["D","SESI ou SESC",null,{"$f":"C46*(D29)","v":0}]
["E","SANAI / SENAC",null,{"$f":"C47*(D29)","v":0}]
["F","SEBRAE",null,{"$f":"C48*(D29)","v":0}]
["G","INCRA",null,{"$f":"C49*(D29)","v":0}]
["H","FGTS",null,{"$f":"C50*(D29)","v":0}]
["Total",null,{"$f":"SUM(C43:C50)","v":0},{"$f":"SUM(D43:D50)","v":0}]
[]
["Submódulo 2.3 - Benefícios Mensais e Diários"]
["Sumódulo 2.3","Benefícios Mensais e Diários","%","R$"]
["A","Transporte                       "]
[null,"Dedução legal de 6% sobre o salário  ",null,{"$f":"-6%*D22","v":0}]
["B","Auxilio Alimentação"]
["C","Plano de Saúde"]
["D","Assistência odontológica"]
["E","Auxilio funeral/Seguro de vida"]
["Total",null,null,{"$f":"SUM(D55:D60)","v":0}]
[]
["Quadro- Resumo do Módulo 2 - Encargos e Benefícios Anuais, Mensais e Diários"]
[2,"Encargos e Beneficios Anuais, Mensais e Dários","%","R$"]
["2.1","13º (décimo terceiro) salário, férias e adicional de férias",{"$f":"C38","v":0},{"$f":"D38","v":0}]
["2.2","GPS, FGTS e outras contribuições",{"$f":"C51","v":0},{"$f":"D51","v":0}]
["2.3","Beneficios Mensais e diários",null,{"$f":"D61","v":0}]
["Total",null,{"$f":"SUM(C65:C66)","v":0},{"$f":"SUM(D65:D67)","v":0}]
[]
["Módulo 3 -  Provisões para Rescisão"]
["MÓDULO 3","Provisões para Rescisão","%","R$"]
["A","Aviso Prévio Indenizado  ",null,{"$f":"C72*D29","v":0}]
["B","Incidência do FGTS sobre Aviso Prévio Indenizaso",null,{"$f":"C73*D29","v":0}]
["C","Multa do FGTS do Aviso Prévio Indenizado ",null,{"$f":"C74*D29","v":0}]
["D","Aviso Prévio Trabalhado ",null,{"$f":"C75*D29","v":0}]
["E","Incidencia do submódulo 4.1 sobre aviso prévio trabalhado",null,{"$f":"C76*D29","v":0}]
["F","Multa do FGTS do aviso prévio trabalhado ",null,{"$f":"C77*D29","v":0}]
["Total",null,{"$f":"SUM(C72:C77)","v":0},{"$f":"SUM(D72:D77)","v":0}]
[]
["MÓDULO 4"," Custo de Reposição do Profissional Ausente"]
["Submódulo 4.1","Ausências Legais","%","R$"]
["A","Férias ",null,{"$f":"ROUND(C82*D$29,2)","v":0}]
["B","Ausências Legais",null,0]
["C","Licença paternidade ",null,0]
["D","Ausências por acidente de trabalho",null,0]
["E","Afastamento Maternidade",null,0]
["F","Outros (Especificar)",null,0]
["Subtotal",null,{"$f":"SUM(C82:C87)","v":0},{"$f":"SUM(D82:D87)","v":0}]
["G","Incidencia do modulo 2.2 sobre o custo de reposição",{"$f":"C88*C51","v":0},{"$f":"C89*D29","v":0}]
[null,"TOTAL",{"$f":"SUM(C88:C89)","v":0},{"$f":"SUM(D88:D89)","v":0}]
[]
["Submódulo 4.2 - Intrajornada"]
["Submódulo 4.2","Intrajornada",null,"R$"]
["A","Intervalo para repouso ou alimentação",null,0]
["Total",null,null,{"$f":"D94","v":0}]
[]
["Quadro-Resumo do Módulo 4 - Custo de Reposição do Profissional Ausente"]
["4.1","Encargos e Beneficios Anuais, Mensais e Diários",null,"R$"]
["4.1","Ausencias Legais",null,{"$f":"D90","v":0}]
["4.2","Intrajornada",null,{"$f":"D95","v":0}]
["Total",null,null,{"$f":"D95","v":0}]
[]
["Módulo 5 - Insumos Diversos"]
["MÓDULO 5","Insumos Diversos","IPCA/%","R$"]
["A","Uniformes ",null,null,44.73]
["B","Materiais    ",null,null,10.9]
["C","EQUIPAMENTOS  ",null,{"$f":"11.29*C107","v":0}]
["D","Outros ( Especificar  ",null,{"$f":"4.69*C108","v":0}]
["Total",null,null,{"$f":"SUM(D105:D107)","v":0}]
[null,"SUBTOTAL",null,{"$f":"D109+D101+D78+D68+D29","v":0}]
["Módulo 6: Custos Indiretos, Tributos e Lucro"]
["MÓDULO 6","Custos Indiretos, Tributos e Lucro","%","R$"]
["A","Custos Indiretos",null,{"$f":"D110*C113","v":0}]
["B","Lucro",null,{"$f":"(D110+D113)*C114","v":0}]
["C","Tributos",null,{"$f":"(D110+D113+D114)/(100%-C115)*C115","v":0}]
["C1","PIS",null,{"$f":"D130*C116","v":0}]
["C2","COFINS",null,{"$f":"D130*C117","v":0}]
["C3","ISS",null,{"$f":"D130*C118","v":0}]
["Total",null,null,{"$f":"D113+D115+D114","v":0}]
[]
["2. QUADRO-RESUMO DO CUSTO POR EMPREGADO"]
["Mão de obra vinculada à execução contratual (valor por empregado)",null,null,"R$"]
["A","Módulo 1 - Composição da Remuneração",null,{"$f":"D29","v":0}]
["B","Módulo 2 - Encargos e Beneficios Anuais, Mensais e Diários",null,{"$f":"D68","v":0}]
["C","Módulo 3 -Provisão para Rescisão",null,{"$f":"D78","v":0}]
["D","Módulo 4 - Custo de Reposição do Profissional Ausente",null,{"$f":"D101","v":0}]
["E","Módulo 5-  Insumos Diversos",null,{"$f":"D109","v":0}]
["Subtotal (A+B+C+D+E)",null,null,{"$f":"SUM(D123:D127)","v":0}]
["E","Módulo 5 - Custos Indiretos, Tributos e Lucro",null,{"$f":"D119","v":0}]
["Valor Total por EMPREGADO",null,null,{"$f":"(D128+D113+D114)/(1-C115)","v":0}]
["Valor Total por Posto  ",null,null,{"$f":"D130","v":0}]

{"sheet":"RECEPCIONISTA","index":7,"n_rows":131,"n_cols":4,"rows_kept":131,"cut":false,"hidden":false,"merged":[[129,0,129,2],[130,0,130,2],[123,1,123,2],[124,1,124,2],[125,1,125,2],[126,1,126,2],[127,0,127,2],[128,1,128,2],[122,1,122,2],[102,0,102,3],[108,0,108,2],[110,0,110,3],[118,0,118,2],[120,0,120,3],[121,0,121,2],[101,0,101,3],[77,0,77,1],[87,0,87,1],[91,0,91,3],[92,1,92,2],[93,1,93,2],[94,0,94,2],[96,0,96,3],[97,1,97,2],[98,1,98,2],[99,1,99,2],[100,0,100,2],[69,0,69,3],[54,0,55,0],[54,1,54,2],[55,1,55,2],[56,1,56,2],[57,1,57,2],[58,1,58,2],[59,1,59,2],[60,0,60,2],[62,0,62,3],[66,1,66,2],[67,0,67,1],[52,0,52,3],[13,1,13,2],[14,1,14,2],[15,1,15,2],[16,1,16,2],[17,1,17,2],[19,0,19,3],[28,1,28,2],[30,2,30,3],[31,0,31,3],[40,0,40,3],[50,0,50,1],[12,0,12,3],[0,0,0,3],[2,0,2,3],[3,1,3,2],[4,1,4,2],[5,1,5,2],[6,1,6,2],[7,0,7,3],[10,0,10,3]]}
["PLANILHA DE CUSTOS E FORMAÇÃO DE PREÇOS"]
["CODEVASF  -  REPACTUAÇÃO 2022 + REAJUSTE DOS INSUMOS"]
["PLANILHA DE CUSTOS E FORMAÇÃO DE PREÇOS   - CODEVASF"]
["A","Data ",null,"2024-04-23"]
["B","Município/UF",null,"Brasília/DF"]
["C","Ano de acordo coletivo, convenção coletiva ou sentença normativa em dissídio coletico",null,2024]
["D","Número de meses de execução contratral",null,12]
[]
[1,"Tipo e serviço (mesmo serviço com características distintas)","Unid. Medida","Quantidade de Funcionários"]
["1.1","RECEPCIONISTA","Posto",1]
[]
["Dados complementares para composição dos custos referente á mão-de-obra"]
[]
[1,"Tipo de serviços (mesmo serviço com características distintas)",null,"RECEPCIONISTA"]
[2,"Classificação Brasileira de Ocupações ( CBO ) ",null,4110]
[3,"Salário normativo da categoria profissional"]
[4,"Categoria profissional (vinculada à execução contratual)",null,"RECEPCIONISTA"]
[5,"Data base da categoria (dia/mês/ano) - SINDISERVIÇOS DF000012/2024",null,"2024-01-01"]
[]
["Módulo 1: Composição da Remuneração"]
["MÓDULO1 ","Composição da Remuneração","%","R$"]
["A","Salário Base ",null,{"$f":"D16+(C22*D16)","v":0}]
["B","Adicional de periculosidade",null,{"$f":"D22*C23","v":0}]
["C","Adicional de Insalubridade ",null,{"$f":"D22*C24","v":0}]
["D","Adicional noturno",null,0]
["E","Adicional de hora noturna reduzida",null,0]
["F","Intervalo Intrajornada",null,{"$f":"(D22+D23)*C27","v":0}]
["H","Outros (Especificar)",null,0]
["I","Total de Remuneração",null,{"$f":"SUM(D22:D28)","v":0}]
[]
["MÓDULO 2","ENCARGOS SOCIAIS E TRABALHISTAS"]
["Submódulo 2.1  - 13º (Décimo Terceiro) Salário, Férias e Adicional de Férias"]
["Submódulo 2.1","13º Salário, Férias e Adicional de Férias","%","R$"]
["A","13º (Décimo Terceiro) Salário",null,{"$f":"C34*D22","v":0}]
["B"," Adicional de férias",null,{"$f":"C35*D29","v":0}]
[null,"TOTAL",{"$f":"SUM(C34:C35)","v":0},{"$f":"SUM(D34:D35)","v":0}]
["c","INCIDÊNCIA -SUBMODULO 2.2 SOBRE O SUBMODULO 2.1 - conforme IN 05/2017",{"$f":"C36*C51","v":0},{"$f":"C37*D29","v":0}]
[null,"Total do Submodulo 2",{"$f":"C36+C37","v":0},{"$f":"D36+D37","v":0}]
[]
["Submódulo 2.2","Encargos Previdenciários(GPS), Fundo de Garantia por tempo de Serviço(FGTS) e outras contribuições"]
["Submódulo 2,2 - Encargos previdenciários e FGTS"]
["2.2","GPS, FGTS e Outras Contribuições","%","R$"]
["A","INSS ",null,{"$f":"C43*(D29)","v":0}]
["B","Salário Educação",null,{"$f":"C44*(D29)","v":0}]
["C","Seguro Acidente de Trabalho (Corrigido conforme FAP e GEFIP em anexo )",null,{"$f":"C45*(D29)","v":0}]
["D","SESI ou SESC",null,{"$f":"C46*(D29)","v":0}]
["E","SANAI / SENAC",null,{"$f":"C47*(D29)","v":0}]
["F","SEBRAE",null,{"$f":"C48*(D29)","v":0}]
["G","INCRA",null,{"$f":"C49*(D29)","v":0}]
["H","FGTS",null,{"$f":"C50*(D29)","v":0}]
["Total",null,{"$f":"SUM(C43:C50)","v":0},{"$f":"SUM(D43:D50)","v":0}]
[]
["Submódulo 2.3 - Benefícios Mensais e Diários"]
["Sumódulo 2.3","Benefícios Mensais e Diários","%","R$"]
["A","Transporte                       "]
[null,"Dedução legal de 6% sobre o salário  ",null,{"$f":"-6%*D22","v":0}]
["B","Auxilio Alimentação"]
["C","Plano de Saúde"]
["D","Assistência odontológica"]
["E","Auxilio funeral/Seguro de vida"]
["Total",null,null,{"$f":"SUM(D55:D60)","v":0}]
[]
["Quadro- Resumo do Módulo 2 - Encargos e Benefícios Anuais, Mensais e Diários"]
[2,"Encargos e Beneficios Anuais, Mensais e Dários","%","R$"]
["2.1","13º (décimo terceiro) salário, férias e adicional de férias",null,{"$f":"D38","v":0}]
["2.2","GPS, FGTS e outras contribuições",null,{"$f":"D51","v":0}]
["2.3","Beneficios Mensais e diários",null,{"$f":"D61","v":0}]
["Total",null,{"$f":"SUM(C65:C66)","v":0},{"$f":"SUM(D65:D67)","v":0}]
[]
["Módulo 3 -  Provisões para Rescisão"]
["MÓDULO 3","Provisões para Rescisão","%","R$"]
["A","Aviso Prévio Indenizado  ",null,{"$f":"C72*D29","v":0}]
["B","Incidência do FGTS sobre Aviso Prévio Indenizaso",null,{"$f":"C73*D29","v":0}]
["C","Multa do FGTS do Aviso Prévio Indenizado ",null,{"$f":"C74*D29","v":0}]
["D","Aviso Prévio Trabalhado ",null,{"$f":"C75*D29","v":0}]
["E","Incidencia do submódulo 4.1 sobre aviso prévio trabalhado",null,{"$f":"C76*D29","v":0}]
["F","Multa do FGTS do aviso prévio trabalhado ",null,{"$f":"C77*D29","v":0}]
["Total",null,{"$f":"SUM(C72:C77)","v":0},{"$f":"SUM(D72:D77)","v":0}]
[]
["MÓDULO 4"," Custo de Reposição do Profissional Ausente"]
["Submódulo 4.1","Ausências Legais","%","R$"]
["A","Férias ",null,{"$f":"ROUND(C82*D$29,2)","v":0}]
["B","Ausências Legais",null,0]
["C","Licença paternidade ",null,0]
["D","Ausências por acidente de trabalho",null,0]
["E","Afastamento Maternidade",null,0]
["F","Outros (Especificar)",null,0]
["Subtotal",null,{"$f":"SUM(C82:C87)","v":0},{"$f":"SUM(D82:D87)","v":0}]
["G","Incidencia do modulo 2.2 sobre o custo de reposição",{"$f":"C88*C51","v":0},{"$f":"C89*D29","v":0}]
[null,"TOTAL",{"$f":"SUM(C88:C89)","v":0},{"$f":"SUM(D88:D89)","v":0}]
[]
["Submódulo 4.2 - Intrajornada"]
["Submódulo 4.2","Intrajornada",null,"R$"]
["A","Intervalo para repouso ou alimentação",null,0]
["Total",null,null,{"$f":"D94","v":0}]
[]
["Quadro-Resumo do Módulo 4 - Custo de Reposição do Profissional Ausente"]
["4.1","Encargos e Beneficios Anuais, Mensais e Diários",null,"R$"]
["4.1","Ausencias Legais",null,{"$f":"D90","v":0}]
["4.2","Intrajornada",null,{"$f":"D95","v":0}]
["Total",null,null,{"$f":"D99+D100","v":0}]
[]
["Módulo 5 - Insumos Diversos ( reajustado sobre o valor anterior)"]
["MÓDULO 5","Insumos Diversos","IPCA/%","R$"]
["A","Uniformes  "]
["B","Materiais    ",null,{"$f":"713.42*C106","v":0}]
["C","EQUIPAMENTOS   ",null,{"$f":"11.29*C107","v":0}]
["D","Outros ( Especificar  ",null,{"$f":"4.69*C108","v":0}]
["Total",null,null,{"$f":"SUM(D105:D107)","v":0}]
[null,"SUBTOTAL",null,{"$f":"D109+D101+D78+D68+D29","v":0}]
["Módulo 6: Custos Indiretos, Tributos e Lucro"]
["MÓDULO 6","Custos Indiretos, Tributos e Lucro","%","R$"]
["A","Custos Indiretos",null,{"$f":"D110*C113","v":0}]
["B","Lucro",null,{"$f":"(D110+D113)*C114","v":0}]
["C","Tributos",null,{"$f":"(D110+D113+D114)/(100%-C115)*C115","v":0}]
["C1","PIS",null,{"$f":"D130*C116","v":0}]
["C2","COFINS",null,{"$f":"D130*C117","v":0}]
["C3","ISS",null,{"$f":"D130*C118","v":0}]
["Total",null,null,{"$f":"D113+D115+D114","v":0}]
[]
["2. QUADRO-RESUMO DO CUSTO POR EMPREGADO"]
["Mão de obra vinculada à execução contratual (valor por empregado)",null,null,"R$"]
["A","Módulo 1 - Composição da Remuneração",null,{"$f":"D29","v":0}]
["B","Módulo 2 - Encargos e Beneficios Anuais, Mensais e Diários",null,{"$f":"D68","v":0}]
["C","Módulo 3 -Provisão para Rescisão",null,{"$f":"D78","v":0}]
["D","Módulo 4 - Custo de Reposição do Profissional Ausente",null,{"$f":"D101","v":0}]
["E","Módulo 5-  Insumos Diversos",null,{"$f":"D109","v":0}]
["Subtotal (A+B+C+D+E)",null,null,{"$f":"SUM(D123:D127)","v":0}]
["E","Módulo 5 - Custos Indiretos, Tributos e Lucro",null,{"$f":"D119","v":0}]
["Valor Total por EMPREGADO",null,null,{"$f":"(D128+D113+D114)/(1-C115)","v":0}]
["Valor Total por Posto  ",null,null,{"$f":"D130","v":0}]

{"sheet":"UNIFORMES","index":8,"n_rows":73,"n_cols":6,"rows_kept":73,"cut":false,"hidden":true,"merged":[[71,0,71,4],[72,0,72,4],[0,0,0,5],[51,5,52,5],[60,0,60,4],[61,0,61,4],[63,0,64,0],[63,1,64,1],[63,2,64,2],[63,3,64,3],[63,4,64,4],[63,5,64,5],[48,0,48,4],[49,0,49,4],[51,0,52,0],[51,1,52,1],[51,2,52,2],[51,3,52,3],[51,4,52,4],[24,5,25,5],[33,0,33,4],[34,0,34,4],[36,0,37,0],[36,1,37,1],[36,2,37,2],[36,3,37,3],[36,4,37,4],[36,5,37,5],[22,0,22,4],[23,0,23,4],[24,0,25,0],[24,1,25,1],[24,2,25,2],[24,3,25,3],[24,4,25,4],[11,0,11,4],[12,0,12,5],[13,0,14,0],[13,1,14,1],[13,2,14,2],[13,3,14,3],[13,4,14,4],[13,5,14,5],[10,0,10,4],[2,4,3,4],[2,5,3,5],[2,0,3,0],[2,1,3,1],[2,2,3,2],[2,3,3,3]]}
["RELAÇÃO GERAL DE UNIFORMES"]
[]
["ITEM","ESPECIFICAÇÃO BOMBEIRO HIDRÁULICO e MARCENEIRO","UN","QTDE.","VALOR UNITÁRIO","Valor total"]
[]
[1,"Camiseta Manga curta Camisa tipo gola pólo, manga curta, com logomarca da empresa;","un",6,30,{"$f":"D5*E5","v":180}]
[2,"Camiseta Mnaga longa Camiseta tipo gola polo, de manga longa, com logomarca da empresa;","un",2,30,{"$f":"D6*E6","v":60}]
[3,"Calça jeans;","un",4,30,120]
[4,"Cinto em couro, modelo social, regulável","un",2,9,18]
[5,"Par de meias tipo esporte","par",6,5,30]
[6,"Calçado tipo bota em couro, solado vulcanizado e antiderrapante, com palmilha antibacteriana","par",2,52.65,105.3]
["Valor total",{"$nulls":4},{"$f":"SUM(F5:F10)","v":513.29999999999995}]
["Valor por empregado",{"$nulls":4},{"$f":"F11/12","v":42.78}]
[]
["ITEM","ESPECIFICAÇÃO GARÇOM","UN","QTDE.","VALOR UNITÁRIO","Valor total"]
[]
[1,"Camisa social, na cor branca, mangas compridas, com botões nos punhos, contendo o emblema da Contratada bordado no lado superior esquerdo ou direito.","un",6,35,{"$f":"D16*E16","v":210}]
[2,"Calça Comprida social, em tecido Oxford com zíper, presilha para cinto, cor preta.","un",4,35,{"$f":"D17*E17","v":140}]
[3,"Blazer Na cor preta, em tecido tipo microfibra, forrado internamente, inclusive na manga, com 2 (dois) bolsos inferiores, contendo o emblema da Contratada bordado no lado superior esquerdo ou direito;","un",2,95,190]
[4,"Gravata tipo borboleta na cor preta.","un",2,10,20]
[5,"Cinto em couro, modelo social, regulável;","un",2,10,20]
[6,"Meia social em tecido liso, 100% algodão, na cor preta.","par",6,5,30]
[7,"sapato Modelo social, de boa qualidade, em couro, na cor preta, solado antiderrapante.","par",2,70,140]
["Valor total",{"$nulls":4},{"$f":"SUM(F16:F22)","v":750}]
["Valor por empregado",{"$nulls":4},{"$f":"F23/12","v":62.5}]
["ITEM","ESPECIFICAÇÃO COPEIRA","UN","QTDE.","VALOR UNITÁRIO","Valor total"]
[]
[1,"Jaleco com botões e 2 (dois) bolsos inferiores, na cor azul marinho, com detalhes em branco na gola, nas mangas e nos bolsos, contendo o emblema da Contratada bordado no lado superior esquerdo ou direito.","un",6,35,{"$f":"D27*E27","v":210}]
[2,"Calça tipo social, com zíper, na cor azul marinho, fazendo conjunto com o jaleco","un",4,35,{"$f":"D28*E28","v":140}]
[3,"Blazer Na cor preta, em tecido tipo microfibra, forrado internamente, inclusive na manga, com 2 (dois) bolsos inferiores, contendo o emblema da Contratada bordado no lado superior esquerdo","un",1,95,95]
[4,"Avental em Oxford ou tergal, na cor branca, com amarras dos lados.","un",4,25,100]
[5,"Laço/Prendedor de cabelos, com laço de rede, na cor preta.","un",4,10,40]
[6,"Meias Social ¾ na cor natural","par",6,5,30]
[7,"Sapato tipo scarpin social que seja macio, palmilha de montagem em couro, solado em couro com proteção antiderrapante, salto máximo 3 cm, na cor preta.","par",2,65,130]
["Valor total",{"$nulls":4},{"$f":"SUM(F27:F33)","v":745}]
["Valor por empregado",{"$nulls":4},{"$f":"F34/12","v":62.08}]
[]
["ITEM","ESPECIFICAÇÃO RECEPCIONISTA","UN","QTDE.","VALOR UNITÁRIO","Valor total"]
[]
[1,"Camisa social, mangas compridas, com botões nos punhos, contendo o emblema da Contratada bordado no lado superior esquerdo ou direito.","un",2,35,{"$f":"D39*E39","v":70}]
[2,"Camisa social, manga curta ou manga 3/4, contendo o emblema da Contratada bordado no lado superior esquerdo ou direito.","un",4,35,{"$f":"D40*E40","v":140}]
[3,"Saia ou Vestido Tipo esporte fino, ambos com zíper na parte de trás, na cor preta, na altura do joelho, contendo o emblema da Contratada bordado no lado superior esquerdo ou direito.","un",1,65,65]
[4,"CalçaTipo esporte fino, com zíper, na cor preta;","un",4,35,140]
[5,"Blazer Na cor preta, em tecido tipo microfibra, forrado internamente, inclusive na manga, com 2 (dois) bolsos inferiores, contendo o emblema da Contratada bordado no lado superior esquerdo","un",2,95,190]
[6,"Meia social ¾ na cor natural","par",6,8,48]
[7,"Meia calça clássica, fio 15, na cor preta","un",4,8,32]
[8,"Lenço para o pescoço, em crepe, contendo o nome da empresa, de boa qualidade.","UN",4,10,40]
[9,"Prendedor de cabelos, com laço de rede, na cor preta.","un",4,10,40]
[10,"Sapato tipo scarpin social que seja macio, palmilha de montagem em couro, solado em couro com proteção antiderrapante, salto máximo 3 cm, na cor preta.","par",2,65,130]
["Valor total",{"$nulls":4},{"$f":"SUM(F39:F48)","v":895}]
["Valor por empregado",{"$nulls":4},{"$f":"F49/12","v":74.58}]
[]
["ITEM","ESPECIFICAÇÃO ENCARREGADO(A)","UN","QTDE.","VALOR UNITÁRIO","Valor total"]
[]
[1,"Camisa social, mangas compridas, com botões nos punhos, contendo o emblema da Contratada bordado no lado superior esquerdo ou direito.","un",4,35,{"$f":"D54*E54","v":140}]
[2,"Camisa social, mangas curtas, contendo o emblema da Contratada bordado no lado superior esquerdo ou direito.","un",4,35,{"$f":"D55*E55","v":140}]
[3,"Blazer Na cor preta, em tecido tipo microfibra, forrado internamente, inclusive na manga, com 2 (dois) bolsos inferiores, contendo o emblema da Contratada bordado no lado superior esquerdo.","un",1,95,95]
[4,"Cinto em couro, modelo social, regulável;","un",2,12,24]
[5,"Calça Comprida social, em tecido Oxford com zíper, presilha para cinto, cor preta","un",4,35,140]
[6,"Meia social em tecido liso, 100% algodão, na cor preta.","par",6,5,30]
[7,"Sapato modelo social, de boa qualidade, em couro, na cor preta, solado antiderrapante.","par",4,70,280]
["Valor total",{"$nulls":4},{"$f":"SUM(F54:F60)","v":849}]
["Valor por empregado",{"$nulls":4},{"$f":"F61/12","v":70.75}]
[]
["ITEM","ESPECIFICAÇÃO SERVENTE","UN","QTDE.","VALOR UNITÁRIO","Valor total"]
[]
[1,"Camiseta com gola simples, de mangas curtas, sem abotoamento, com logomarca da empresa;","un",6,30,{"$f":"D66*E66","v":180}]
[2,"Camiseta com gola simples, de mangas longas, sem abotoamento, com logomarca da empresa;","un",2,30,{"$f":"D67*E67","v":60}]
[3,"Calça comprida com elástico e cordão, em tecido brim;","un",4,35,140]
[4,"Meia em algodão, tipo soquete;","par",6,10,60]
[5,"Calçado cano curto, solado antideslizante e antiderrapante, com palmilha antibacteriana.","un",2,55,110]
[6,"Bota de borracha para limpeza com solado antiderrapante;","par",1,40,40]
["Valor total",{"$nulls":4},{"$f":"SUM(F66:F71)","v":590}]
["Valor por empregado",{"$nulls":4},{"$f":"F72/12","v":49.17}]

{"sheet":"MATERIAIS e EQUIPAMENTOS","index":9,"n_rows":130,"n_cols":6,"rows_kept":130,"cut":false,"hidden":true,"merged":[[114,0,114,4],[116,0,116,5],[128,0,128,4],[129,0,129,4],[76,0,76,5],[87,0,87,5],[94,0,94,4],[96,0,96,5],[103,0,103,4],[104,0,104,4],[106,0,106,5],[113,0,113,4],[77,0,77,5],[85,0,85,4],[86,0,86,4],[88,0,88,5],[93,0,93,4],[57,0,57,4],[38,0,38,5],[2,0,2,5],[59,0,59,5],[74,0,74,4],[75,0,75,4],[35,0,35,4],[36,0,36,4],[56,0,56,4]]}
[]
[]
["LIMPEZA- Relação minima estimada de materiais de consumo MENSAL"]
["ITEM","PERIODICIDADE","UNIDADE DE FORNECIMENTO","QDE ESTIMATIVA","R$ UNITÁRIO","R$ TOTAL"]
["Água sanitária de 1ª qualidade, galão de 5 litros","Mensal","UNIDADE",5,2.1,{"$f":"E5*D5","v":10.5}]
["Álcool 46 º C de 1ª qualidade","Mensal","UNIDADE",24,5.0999999999999996,{"$f":"E6*D6","v":122.4}]
["Álcool Gel 70% hidratante, antisseptico, de 1ª qualidade, galão de 5 litros","Mensal","UNIDADE",1,6.5,6.5]
["Desodorizador de ar (aerosol), cada unidade com 360 ml","Anual","UNIDADE",20,6.5,130]
["Brilha Inox, lata com 420g","Mensal","UNIDADE",2,5.2,10.4]
["Desinfetante concentrado, galão de 5 litros","Mensal","UNIDADE",6,19.5,117]
["Disco para enceradeira de 510mm","Anual","UNIDADE",6,18.5,111]
["Esponja de espuma multiuso dupla face com manta abrasiva no padrão 3M Scote Brite","Mensal","UNIDADE",24,0.95,22.8]
["Fibra limpeza pesada","Mensal","UNIDADE",10,2.25,22.5]
["Fita zebrada","Mensal","UNIDADE",1,4.2,4.2]
["Flanela - 28x38 cm, cor amarela","Mensal","UNIDADE",20,1.95,39]
["Flanela - 28x38 cm, cor branca","Mensal","UNIDADE",10,1.95,{"$f":"E16*D16","v":19.5}]
["Impermeabilizante antiderrapante para piso granitina, galão de 5 litros","Mensal","UNIDADE",6,62.93,377.58]
["Esponja de Lã de aço no padrão da marca bombril","Mensal","UNIDADE",16,2.99,47.84]
["Limpa vidros concentrado, galão de 5 litros","Mensal","UNIDADE",2,16.3,32.6]
["Limpador multiuso no padrão da marca VEJA","Mensal","UNIDADE",24,1.35,32.4]
["Luvas de látex (par)","Mensal","UNIDADE",36,3.1,111.6]
["Papel higiênico macio, de 1ª qualidade, folha dupla picotada, rolo com 30 metros (a serem utilizados nos lavabos) - 02 fardos com 16 rolos","Mensal","UNIDADE",32,49.5,1584]
["Papel higiênico macio, de 1ª qualidade, folha dupla picotada, rolo com 300 metros (a serem utilizados nos banheiros coletivos) - 50 fardos com 8 rolos","Mensal","UNIDADE",400,12.3,4920]
["Papel toalha, interfolhado, macio, hidrossolúvel, feito com 100% de celulose na cor branca, folha dupla, de 1ª qualidade - 140 fardos com 2000 folhas","Anual","CAIXA",140,22,3080]
["Pasta rosa de 1ª qualidade","Mensal","UNIDADE",10,5.2,52]
["Removedor concentrado desengordurante, desengraxante, removedor de cera, limpador de coifas e fogões, galão de 5 litros","Mensal","UNIDADE",4,21,84]
["Saco alvejado, 100% algodão, para limpeza de chão","Mensal","UNIDADE",36,3.5,126]
["Sabão em barra de 1ª qualidade","Mensal","UNIDADE",35,2.0499999999999998,71.75]
["Sabão em pó, 1 kg","Mensal","CAIXA",10,6.5,65]
["Sabonete líquido de 1ª qualidade, perfumado, galão de 5 litros","Mensal","UNIDADE",12,1.35,16.2]
["Saco para lixo 100 litros com 100 unidades – reforçado","Mensal","PACOTE",10,18.5,185]
["Saco para lixo 200 litros com 100 unidades – reforçado","Mensal","PACOTE",5,23.5,117.5]
["Saco para lixo 40 litros com 100 unidades – reforçado","Mensal","PACOTE",4,16,64]
["Saco para lixo 60 litros com 100 unidades – reforçado","Mensal","PACOTE",5,18,90]
["Tela odorizadora para mictorio com pedra","Mensal","UNIDADE",30,13.9,417]
["TOTAL GERAL",{"$nulls":4},{"$f":"SUM(F5:F35)","v":12090.27}]
["TOTAL GERAL / UTS",{"$nulls":4},{"$f":"F36/18","v":671.68}]
[]
[" LIMPEZA - Relação minima estimada de materiais de consumo anual"]
["ITEM","PERIODICIDADE","UNIDADE DE FORNECIMENTO","QDE ESTIMATIVA","R$ UNITÁRIO","R$ TOTAL"]
["Balde plástico reforçado de 12 litros","ANUAL","UNIDADE",36,2.1,{"$f":"E41*D41","v":75.599999999999994}]
["Balde plástico reforçado de 20 litros","ANUAL","UNIDADE",36,5.0999999999999996,{"$f":"E42*D42","v":183.6}]
["Escova de mão, com cerdas de nylon","ANUAL","UNIDADE",8,6.5,52]
["Escova sanitária com cerdas de nylon em formato circular, para higienização de vaso sanitário c/suporte","ANUAL","UNIDADE",15,5,75]
["Máscara contra pó e odores padrão 3M ou similar","ANUAL","UNIDADE",20,5.2,104]
["Pá de lixo com cabo longo","ANUAL","UNIDADE",20,18.5,370]
["Rodo limpa vidros com cabo longo","ANUAL","UNIDADE",3,18.5,55.5]
["Rodo, com 40 cm de largura, com cabo","ANUAL","UNIDADE",35,0.95,33.25]
["Rodo, com 60 cm de largura, com cabo","ANUAL","UNIDADE",35,2.25,78.75]
["Rodo, com 90 cm de largura, com cabo","ANUAL","UNIDADE",30,4.2,126]
["Saco para aspirador de pó","ANUAL","UNIDADE",2,1.95,3.9]
["Suporte para fibra abrasiva","ANUAL","UNIDADE",8,60,480]
["Rastelo de plástico cabo longo","ANUAL","UNIDADE",2,2.99,5.98]
["Vassoura de pêlo de 40 cm com cabo","ANUAL","UNIDADE",30,16.3,489]
["Vassoura de pêlo de 60 cm com cabo","ANUAL","UNIDADE",30,1.35,40.5]
["Vassoura de piaçava de 40 cm","ANUAL","UNIDADE",40,3.1,124]
["TOTAL GERAL",{"$nulls":4},{"$f":"SUM(F41:F56)","v":2297.08}]
["TOTAL GERAL / UTS",{"$nulls":4},{"$f":"F57/18/12","v":10.63}]
[]
["COPEIRA- Relação minima estimada de materiais de consumo MENSAL"]
["ITEM","PERIODICIDADE","UNIDADE DE FORNECIMENTO","QDE ESTIMATIVA","R$ UNITÁRIO","R$ TOTAL"]
["Água sanitária de 1ª qualidade, galão de 5 litros","Mensal","UNIDADE",4,2.1,{"$f":"E62*D62","v":8.4}]
["Álcool 46 º C de 1ª qualidade","Mensal","UNIDADE",4,5.0999999999999996,{"$f":"E63*D63","v":20.399999999999999}]
["Detergente líquido neutro biodegradável de 1ª qualidade, para utilização nas copas, 500 ml (minuano ou similar)","Mensal","UNIDADE",24,1.55,37.200000000000003]
["Esponja de espuma multiuso dupla face com manta abrasiva no padrão 3M Scote Brite","Mensal","UNIDADE",24,0.95,22.8]
["Esponja de Lã de aço no padrão da marca bombril","Mensal","UNIDADE",16,2.99,47.84]
["Luvas de látex (par)","Mensal","UNIDADE",5,3.1,15.5]
["Limpador multiuso no padrão da marca VEJA","Mensal","UNIDADE",8,1.35,10.8]
["Papel toalha, rolo","Mensal","UNIDADE",10,30,300]
["Pano de prato 100% algodão","Mensal","UNIDADE",8,2.4500000000000002,19.600000000000001]
["Flanela - 28x38 cm, cor amarela","Mensal","UNIDADE",5,0.85,4.25]
["Sabão em barra de 1ª qualidade","Mensal","UNIDADE",8,1.95,15.6]
["Sabão em pó, 1 kg","Mensal","CAIXA",4,6.5,26]
["Saponanceo cremoso","Mensal","UNIDADE",4,3.5,14]
["TOTAL GERAL",{"$nulls":4},{"$f":"SUM(F62:F74)","v":542.39}]
["TOTAL GERAL / UTS",{"$nulls":4},{"$f":"F75/5","v":108.48}]
[]
["COPEIRA- Relação minima estimada de materiais de consumo ANUAL"]
["ITEM","PERIODICIDADE","UNIDADE DE FORNECIMENTO","QDE ESTIMATIVA","R$ UNITÁRIO","R$ TOTAL"]
["Balde plástico reforçado de 12 litros","ANUAL","UNIDADE",4,12,{"$f":"E80*D80","v":48}]
["Coador de café de pano para máquina indutrial, 10 litros Unidade","ANUAL","UNIDADE",12,3,{"$f":"E81*D81","v":36}]
["Rodo de pia","ANUAL","UNIDADE",12,5,60]
["Rodo, com 40 cm de largura, com cabo","ANUAL","UNIDADE",4,6.9,27.6]
["Suporte para sabão e bucha","ANUAL","UNIDADE",4,9.5,38]
["Saco alvejado, 100% algodão, para limpeza de chão","ANUAL","UNIDADE",12,3.5,42]
["TOTAL GERAL",{"$nulls":4},{"$f":"SUM(F80:F85)","v":251.6}]
["TOTAL GERAL / UTS",{"$nulls":4},{"$f":"F86/5/12","v":4.1900000000000004}]
[]
["BOMBEIRO HIDRÁULICO - Relação mínima estimada de materiais de consumo - MENSAL"]
["ITEM","PERIODICIDADE","UNIDADE DE FORNECIMENTO","QDE ESTIMATIVA","R$ UNITÁRIO","R$ TOTAL"]
["Estopa branca super extra, 100% algodão, com 1kg","Mensal","PACOTE",1,5.9,{"$f":"E91*D91","v":5.9}]
["Luvas reforçadas compridas","Mensal","UNIDADE",1,7.5,{"$f":"E92*D92","v":7.5}]
["Produto de limpeza biológica de caixa de gordura","Mensal","CAIXA",1,25,25]
["TOTAL GERAL",{"$nulls":4},{"$f":"SUM(F91:F93)","v":38.4}]
["TOTAL GERAL / UTS",{"$nulls":4},{"$f":"F94/1","v":38.4}]
[]
["BOMBEIRO HIDRÁULICO - Relação mínima estimada de materiais de consumo - ANUAL"]
["ITEM","PERIODICIDADE","UNIDADE DE FORNECIMENTO","QDE ESTIMATIVA","R$ UNITÁRIO","R$ TOTAL"]
["Balde plástico reforçado de 20 litros","ANUAL","UNIDADE",2,12,{"$f":"E99*D99","v":24}]
["Máscara contra pó e odores padrão 3M ou similar","ANUAL","UNIDADE",5,5.2,26]
["Desentupidor manual para pia","ANUAL","UNIDADE",4,5,20]
["Desentupidor de Vaso sanitário","ANUAL","UNIDADE",2,5,10]
["Saco alvejado, 100% algodão, para limpeza de chão","ANUAL","UNIDADE",4,3.5,14]
["TOTAL GERAL",{"$nulls":4},{"$f":"SUM(F99:F103)","v":94}]
["TOTAL GERAL / UTS",{"$nulls":4},{"$f":"F104/12","v":7.83}]
[]
["MARCENEIRO - Relação mínima estimada de materiais de consumo - ANUAL"]
["ITEM","PERIODICIDADE","UNIDADE DE FORNECIMENTO","QDE ESTIMATIVA","R$ UNITÁRIO","R$ TOTAL"]
["Protetor auricular concha preto","ANUAL","UNIDADE",1,5.0999999999999996,{"$f":"E109*D109","v":5.0999999999999996}]
["Máscara de proteção para pó - padrão 3M ou similar","ANUAL","UNIDADE",5,5.2,26]
["Óculos de proteção com ampla visão","ANUAL","UNIDADE",2,8.1999999999999993,16.399999999999999]
["Avental em pvc com forro branco","ANUAL","UNIDADE",2,30,60]
["Saco alvejado, 100% algodão, para limpeza de chão","Mensal","UNIDADE",5,3.5,17.5]
["TOTAL GERAL",{"$nulls":4},{"$f":"SUM(F109:F113)","v":125}]
["TOTAL GERAL / UTS",{"$nulls":4},{"$f":"F114/12","v":10.42}]
[]
["Relação de Equipamentos para fornecimento ddurante a execução do contrato"]
["ITEM","PERIODICIDADE","UNIDADE DE FORNECIMENTO","QDE ESTIMATIVA","R$ UNITÁRIO","R$ TOTAL"]
["Aspirador de pó/líquido","ANUAL","UNIDADE",1,289,{"$f":"E119*D119","v":289}]
["Carro para coleta de papeis reciclados com 2 rodas","ANUAL","UNIDADE",2,350,700]
["Carro para coleta de resíduos com 2 rodas","ANUAL","UNIDADE",1,350,{"$f":"E121*D121","v":350}]
["Enceradeira - baixo nível de ruído","ANUAL","UNIDADE",1,1300,1300]
["Escada metálica - 4 degraus","ANUAL","UNIDADE",24,150,3600]
["Escada metálica - 9 degraus","ANUAL","UNIDADE",24,195,4680]
["Mangueira para jardim 3/4\" com 50 metros em PVC (externa) / poliéster trançado (intermediário)","ANUAL","UNIDADE",1,120,120]
["Placa de sinalização alto portátil na cor amarela com os dizeres nos dois lados em preto “Banheiro Em Manutenção”.","ANUAL","UNIDADE",15,20,300]
["Placa de sinalização alto portátil na cor amarela com os dizeres nos dois lados em preto “Piso Molhado”.","ANUAL","UNIDADE",10,20,200]
["Balde duas águas, capacidade mínima de 40 litros, com rodas e espremedor MOP","ANUAL","UNIDADE",1,120,120]
["TOTAL GERAL",{"$nulls":4},{"$f":"SUM(F119:F128)","v":11659}]
["TOTAL GERAL / UTS",{"$nulls":4},{"$f":"F129/60/18","v":10.8}]

{"sheet":"EQUIPAMENTOS","index":10,"n_rows":10,"n_cols":5,"rows_kept":10,"cut":false,"hidden":true,"merged":[[8,0,8,3],[9,0,9,3],[12,2,12,4],[0,0,0,4]]}
["RELAÇÃO DE MATERIAL PERMANENTE"]
[]
[]
["ITENS","MATERIAL","ESTIMATIVA","R$ UNITARIO","R$ TOTAL"]
[1,"Enceradeira industrial",2,1300,{"$f":"D5*C5/60","v":43.33}]
[2,"Lavadora de alta pressão",1,650,{"$f":"D6*C6/60","v":10.83}]
[3,"Aspirador de pó e água",2,350,{"$f":"D7*C7/60","v":11.67}]
[4,"Contentor/ lixeira de 240 litros",2,450,{"$f":"D8*C8/60","v":15}]
["Total do material",null,null,null,{"$f":"SUM(E5:E8)","v":80.83}]
["Total do material por empregado",null,null,null,{"$f":"E9/18","v":4.49}]

{"sheet":"Memória de Calculos Encargo","index":11,"n_rows":49,"n_cols":5,"rows_kept":49,"cut":false,"hidden":true,"merged":[[48,0,48,2],[29,0,29,4],[30,1,30,2],[31,1,31,2],[32,1,32,2],[33,1,33,2],[34,1,34,2],[35,1,35,2],[36,1,36,2],[37,0,37,2],[39,0,39,4],[46,0,46,2],[27,0,27,2],[7,1,7,2],[8,1,8,2],[9,1,9,2],[10,1,10,2],[11,1,11,2],[12,1,12,2],[13,0,13,2],[15,0,15,4],[19,0,19,2],[21,0,21,2],[23,0,23,4],[6,1,6,2],[0,0,0,4],[2,0,2,4],[3,0,3,4],[4,1,4,2],[5,1,5,2]]}
["Memória de Cálculo - Encargos Sociais"]
[]
["Módulo : Encargos Sociais Trabalhistas "]
[" Encargos previdenciários e FGTS"]
[null,"Encargos Previdenciários e FGTS",null,"%","Memória de Cálculo dos Percentuais"]
["A","INSS - Art. 22, I, Lei 8.212/91",null,0.2,"Percentual conforme estabelecido em legislação vigente - Art. 22, I, Lei 8.212/91"]
["B","SESI OU SESC - Art.º 3º, Lei 8.036/90",null,1.4999999999999999E-2,"Percentual conforme estabelecido em legislação vigente - Art.º 3º, Lei 8.036/90"]
["C","SENAI OU SENAC - Decreto 2.318/86",null,0.01,"Percentual conforme estabelecido em legislação vigente - Decreto 2.318/86"]
["D","INCRA - Lei 7.787/89 e DL 1.146/70",null,2E-3,"Lei 7.787/89 e DL 1.146/70"]
["E","Salário Educação - Art. 8º da Lei 8.029/90 e Lei 8.154/90",null,2.5000000000000001E-2,"Percentual conforme estabelecido em legislação vigente - Art. 8º da Lei 8.029/90 e Lei 8.154/90"]
["F","FGTS - Art. 15 da Lei 8.030/90 e Art. 7º, III da CF/88",null,0.08,"Percentual conforme estabelecido em legislação vigente - Art. 15 da Lei 8.030/90 e Art. 7º, III da CF/88"]
["G","Seguro Acidente de Trabalho / SAT / INSS (Conforme GFIP/SEFIP em anexo - FAP 0,85 x RAT 2,00 = RAT Ajustado 3,21)",null,1.7000000000000001E-2,"Percentual conforme estabelecido em legislação vigente - (Conforme GFIP/SEFIP em anexo - FAP 0,50 x RAT 3,00 = RAT Ajustado 1,50)"]
["H","SEBRAE",null,6.0000000000000001E-3,"Percentual conforme estabelecido em legislação vigente"]
["Total",null,null,{"$f":"SUM(D6:D13)","v":0.35499999999999998},"Somatório de (A+B+C+D+E+F+G+H)"]
[]
[" 13º Salário e Adicional de Férias"]
[null,"13º Salário e Adicional de Férias","Base de Calculo","%","Memória de Cálculo dos Percentuais"]
["A","13º Salário ","Módulo 1",8.3299999999999999E-2,"(5/60*100); onde: 5 corresponde a quantidade ocorrencias de 13º salário no decorrer do contrato; 60 quantidade de meses contratuais                                      "]
["B","Adicional de Férias","Módulo 1",2.7799999999999998E-2," 2,78% ( 1/3 da Remuneração/12meses) = 100%da remunerçaão /3/12meses)"]
["Subtotal (A + B)",null,null,{"$f":"D18+D19","v":0.1111},"Somatório de A + B"]
["C","Incidência do submódulo 4.1 sobre A e B","Subtotal",{"$f":"D14*D20","v":3.9399999999999998E-2},"Total do percentual do submódulo 4.1 multiplicado pelo subtotal do sobmódulo 4.2 (35,50% x 11,11%)"]
["Total",null,null,{"$f":"D20+D21","v":0.15049999999999999},"Somatório de (A+B+C)"]
[]
["Submódulo 4.3 - Afastamento Maternidade"]
["4.3","Afastamento Maternidade","Base de Calculo","%","Memória de Cálculo dos Percentuais"]
["A","Afastamento Maternidade","Módulo 1",2.0000000000000001E-4,"[(0,1111 x 0,02 x 0,333) x 100] = [0,0007 x 100] =0,07-     Acórdão TCU - Plenário nº 1513/2013."]
["B","Incidência do submódulo 4.1 sobre A","Subtotal",{"$f":"D14*D26","v":1E-4},"Total do percentual do submódulo 4.1 multiplicado pelo percentual do Afatamento Maternidade  (35,30% x 0,02%)"]
["Total",null,null,{"$f":"SUM(D26:D27)","v":2.9999999999999997E-4},"Somatório de (A+B)"]
[]
[" Provisões para Rescisão"]
[null,"Provisões para Rescisão",null,"%","R$"]
["A","Aviso Prévio Indenizado",null,{"$f":"1/12*0.05","v":4.1999999999999997E-3},"(1/12)x0,05x100 onde: 0,05refere-se ao percentual de ocorrências ( Art. 7º Inciso XXI da CEF/88 e 477 a 491 da CLT e Acordão TCU-Plenário 1513/2013"]
["B","Incidência do FGTS sobre Aviso Prévio Indenizaso",null,{"$f":"D11*D32","v":2.9999999999999997E-4},"(8x0,42)/100 onde: 8 é o percentual de FGTS e 0,42 Aviso Previo Indenizado"]
["C","Multa sobre FGTS sobre o Aviso Prévio Indenizado",null,2E-3,"{[0,05 *(0,4+0,10)]*0,80)= 0,20 onde 5% corresponde ao percentual de demissões antes do término- Nota Técnica 001/2013 e Acordão TCU-Plenário 1513/2013"]
["D","Aviso Prévio Trabalhado",null,1.9400000000000001E-2,"Conforme IN05/2017 ( caderno técnico)"]
["E","Incidencia do submódulo 4.1 sobre aviso prévio trabalhado",null,{"$f":"D14*D35","v":6.8999999999999999E-3},"Total do percentual do submódulo 4.1 multiplicado pelo percentual do aviso prévio trabalhado  (35,50% x 1,70%)"]
["F","Multa sobre FGTS sobre o aviso prévio trabalhado",null,4.2999999999999997E-2,"Resolução nº 98/2009-CNJ"]
["Total",null,null,{"$f":"SUM(D32:D37)","v":7.5800000000000006E-2},"Somatório de (A+B+C+D+E+F)"]
[]
[" Custo de Reposição do Profissional Ausente"]
[null,"Custo de Reposição do Profissional Ausente","Base de Cálculo","%","Memória de Cálculo dos Percentuais"]
["A","Férias","Módulo 1",8.3299999999999999E-2,"(1/12)*100=8,33 ( Artigos 129,130,142 e 143 da CLT (Decreto Lei 5.452/43). Acordão TCU 1904/2017 e 1513/2013-Plenário . Resolução CNJ 98/2009."]
["B","Ausências legais","Módulo 1",2.8E-3,"[(1/30)/12]*100 - Art 473 da CLT ( Decreto Lei 5.452/43, incisos I a IX, e 822 da CLT - Acordão TCU Plenário 1904/2007 e Acordão TCU Plenário1513/2013"]
["C","Licença Paternidade ","Módulo 1",2.0000000000000001E-4,"[(5/30)/12*0,015]*100-Atigos 7º, inciso XIX, § 1º dos Atos das Disposições Constitucionais Transitórias-ADCT"]
["D","Ausencia por acidente de Trabalho","Módulo 1",3.3E-3,"(15/30)/12x 0,08x100 - Artigos 59 e 60, § 3º da Lei 8.213/1991."]
["E","Afstameto Maternidade","Módulo 1",6.9999999999999999E-4,"[(0,1111 x 0,02 x 0,333) x 100] = [0,0007 x 100] =0,07-     Acórdão TCU - Plenário nº 1513/2013."]
["Subtotal (A+B+C+D+E)",null,null,{"$f":"SUM(D42:D46)","v":9.0300000000000005E-2},"Somatório de (A+B+C+D+E)"]
["F","Incidência do submódulo 4.1 s/ o custo de reposição","Subtotal",{"$f":"D14*D47","v":3.2099999999999997E-2},"Total do percentual do submódulo 4.1 multiplicado pelo percentual do Custo de Reposição (36,80% x 12,19%)"]
[null,null,null,{"$f":"D47+D48","v":0.12239999999999999},"Somatório de (A+B+C+D+E+F)"]

{"sheet":"Encargos sociais","index":12,"n_rows":57,"n_cols":10,"rows_kept":57,"cut":false,"hidden":true,"merged":[[11,1,11,3],[1,0,1,6],[2,0,2,4],[3,1,3,3],[4,1,4,3],[5,1,5,3],[10,1,10,3],[0,0,0,6],[6,1,6,3],[7,1,7,3],[8,1,8,3],[9,1,9,3],[23,1,23,3],[12,1,12,3],[13,0,13,4],[14,0,14,6],[15,1,15,3],[16,1,16,3],[17,1,17,3],[18,1,18,3],[19,1,19,3],[20,0,20,4],[21,0,21,6],[22,1,22,3],[35,1,35,3],[24,1,24,3],[25,1,25,3],[26,0,26,4],[27,0,27,6],[28,1,28,3],[29,1,29,3],[30,1,30,3],[31,1,31,3],[32,1,32,3],[33,1,33,3],[34,1,34,3],[47,0,47,4],[36,0,36,4],[37,0,37,6],[38,1,38,3],[39,1,39,3],[40,1,40,3],[41,1,41,3],[42,1,42,3],[43,1,43,3],[44,1,44,3],[45,1,45,3],[46,1,46,3],[54,1,54,3],[55,1,55,3],[56,1,56,3],[48,0,48,6],[49,1,49,3],[50,1,50,3],[51,1,51,3],[52,1,52,3],[53,1,53,3]]}
["PLANILHA DE ENCARGOS SOCIAIS"]
["MÓDULO 4: ENCARGOS SOCIAIS E TRABALHISTAS"]
["Submódulo 4.1 - Encargos previdenciários e FGTS"]
["4.1","Encargos previdenciários e FGTS",null,null,"%","Memória de Cálculo","Fundamento"]
["A","INSS",null,null,0.2,"-","Art. 22, Inciso I, da Lei nº 8.212/91."]
["B","SESI ou SESC",null,null,1.4999999999999999E-2,"-","Art. 3º, Lei n.º 8.036/90."]
["C","SENAI ou SENAC",null,null,0.01,"-","Decreto n.º 2.318/86."]
["D","INCRA",null,null,2E-3,"-","Lei n.º 7.787/89 e DL n.º 1.146/70."]
["E","Salário Educação",null,null,2.5000000000000001E-2,"-","Art.    3º,    Inciso    I,    Decreto    n.º 87.043/82."]
["F","FGTS",null,null,0.08,"-","Art. 15, Lei nº 8.030/90 e Art. 7º, III, CF."]
["G","Seguro Acidente de Trabalho/SAT/INSS  ( 0,85 X2,00 )",null,null,1.7000000000000001E-2,"RAT X FAP","Lei n.º 8.212/91  e Decreto 6.957/2009"]
["H","SEBRAE",null,null,6.0000000000000001E-3,"-","Art.  8º,  Lei  n.º  8.029/90  e  Lei  n.º 8.154/90. "]
[null,"Total",null,null,{"$f":"SUM(E5:E12)","v":0.35499999999999998}]
[]
["Submódulo 4.2 - 13º Salário "]
["4.2","13º Salário ",null,null,"%","Memória de Cálculo","Fundamento"]
["A","13º Salário",null,null,8.3299999999999999E-2,"[(1/12)x100] = 8,333%","Art. 7º, VIII, CF/88- Dec. 57.115/65."]
[null,"Subtotal",null,null,{"$f":"SUM(E17:E17)","v":8.3299999999999999E-2}]
["B","Incidência do Submódulo 4.1 sobre 13º Salário ",null,null,{"$f":"E13*E18","v":2.9600000000000001E-2},"(total submódulo 4.1 x 13º)"]
[null,"Total",null,null,{"$f":"SUM(E18:E19)","v":0.1129}]
[]
["Submódulo 4.3 - Afastamento Maternidade"]
["4.3","Afastamento Maternidade",null,null,"%","Memória de Cálculo","Fundamento"]
["A","Afastamento Maternidade ",null,null,2.0000000000000001E-4,"{[(1/12x4)+(1/12x4)+1/3x1/12x4)]/12x0,0025}x100=0,02%","- CCT SINDISERVIÇOS 2016"]
["B","Incidência do Submódulo 4.1 sobre afastamento maternidade",null,null,{"$f":"E13*E24","v":1E-4},"(total submódulo 4.1 x 0,02%)","- CCT SINDISERVIÇOS 2016"]
[null,"Total",null,null,{"$f":"SUM(E24:E25)","v":2.9999999999999997E-4}]
[]
["Submódulo 4.4 - Provisão para Rescisão"]
["4.4","Provisão para Rescisão",null,null,"%","Memória de Cálculo","Fundamento"]
["A","Aviso prévio indenizado",null,null,4.1999999999999997E-3,"[(1/12)X5]=0,42%","Art. 7º, XXI, CF/88, 477, 487 e 491 CLT. Estimativa de que 5% dos empregados serão substítuidos durante o ano."]
["B","Incidência do FGTS sobre aviso prévio indenizado",null,null,{"$f":"E10*E30","v":2.9999999999999997E-4},"(8% X 0,42%) = 0,03%","Leis nºs 8.036/90 e 9.491/97."]
["C","Multa do FGTS do aviso prévio indenizado",null,null,0.05,null,"Conforme IN nº 002/2008"]
["D","Aviso prévio trabalhado",null,null,1.9400000000000001E-2,"(7/30/12x0,25*100)=0,38%","Idenização de 7 dias corridos devido ao empregado me caso de rescisão sem justo motivo e conceder aviso prévio, disposto no art. 488 da CLT, estima-se que 25% dos empregados sejam demitidos nessa situação."]
["E","Incidência do submódulo 4.1 sobre aviso prévio trabalhado",null,null,{"$f":"E13*E33","v":6.8999999999999999E-3},"(35,94%*0,38%)=0,14%"]
["F","Multa do FGTS do aviso prévio trabalhado",null,null,0,"CCT 2016","CCT 2016",null,null,{"$f":"(2/30/12*100)","v":0.55555555555555602}]
[null,"Total",null,null,{"$f":"SUM(E30:E35)","v":8.0799999999999997E-2}]
[]
["Submódulo 4.5 - Custo de Reposição do Profissional Ausente"]
["4.5","Composição do Custo de Reposição do Profissional Ausente",null,null,"%","Memória de Cálculo","Fundamento"]
["A","Férias e Adicional de Férias",null,null,0.121,null,"Conforme IN 002/2008"]
["B","Ausencia por doença",null,null,0,"(2,5/30/12)*100=0,69%","O art. 131 inciso III da CLT, onera a empresa com até 15 ausencias do empregado por motivo de acidente ou doença atestada pelo INSS. Ficando a empresa contratada a providenciar as devidas substituições. Nesse caso estima 1,5 ausência."]
["C","Licença paternidade",null,null,1E-4,"[(5/30)/12]X0,010X100=0,01"," CCT 2016-"]
["D","Ausências legais",null,null,2.0000000000000001E-4,"(1,5/30/12)*100=0,28%","Art. 473 da CLT. Estimativa de 1,5 ausênia por ano."]
["E","Ausência por Acidente de trabalho",null,null,2.0000000000000001E-4,"{[(30/30)/12]x0,02X100)=0,02","Art 27 do dec.89312/84. art 131 CLT e MP654/2014",null,null,{"$f":"(15/30/12*5%)*100","v":0.20833333333333301}]
[null,"Subtotal",null,null,{"$f":"SUM(E40:E44)","v":0.1215}]
["F","Incidência do Submódulo 4.1 sobre o custo de reposição",null,null,{"$f":"E13*E45","v":4.3099999999999999E-2},"(total submódulo 4.1 x subtotal submódulo 4.5)"]
[null,"Total",null,null,{"$f":"SUM(E45:E46)","v":0.1646}]
[]
["TOTAL DOS ENCARGOS SOCIAIS = 72,48 %"]
[4,"Módulo 4 - Encargos sociais e trabalhistas",null,null,"%","Memória de Cálculo","Fundamento"]
["4.1","Encargos previdenciários e FGTS",null,null,{"$f":"E13","v":0.35499999999999998},"Total dos encargos previdenciários e FGTS","-"]
["4.2","13 º salário ",null,null,{"$f":"E20","v":0.1129},"Total do 13º salário","-"]
["4.3","Afastamento maternidade",null,null,{"$f":"E26","v":2.9999999999999997E-4},"Total do afastamento maternidade","-"]
["4.4","Custo de rescisão",null,null,{"$f":"E36","v":8.0799999999999997E-2},"Total da provisão para rescisão","-"]
["4.5","Custo de reposição do profissional ausente",null,null,{"$f":"E47","v":0.1646},"Total da coposição do custo de reposição do profissional ausente ","-"]
["4.6","Outros (especificar)",null,null,0,null,"-"]
[null,"Total",null,null,{"$f":"SUM(E51:E56)","v":0.71360000000000001},null,"-"]